Cogmind - Beta 17 @@@ ROGUE MODE // 2026.07.18 @ 03:49:18 Player: KURIIRI Result: Self-destructed Performance ------------- Evolutions (8) 4000 Regions Visited (32) 6400 Robots Destroyed (390) 1950 Value Destroyed (25993) 25993 Prototype IDs (69) 1380 Alien Tech Used (0) 0 Bonus (46289) 46289 TOTAL SCORE: 86012 Bonus ------- High Alert Combat Kills 2343 Follower Combat Kills 17514 Prayed to X0-1V1 5000 Major X0-1V1 Interference 12650 Entered Garrisons 2600 Used RIF Installer 7000 Friendly Fire -818 Cogmind --------- Core Integrity 146/1225 Matter 891/900 Energy 56/1200 System Corruption 28% Temperature Cool (0) Movement Walking (115) Location -2/Research Parts ------- > --- POWER (3) -------- (None) > --- PROPULSION (5) --- Biometal Leg Centrium Leg > --- UTILITY (13) ----- Enhanced Optical Array Experimental Core Analyzer Relay Coupler [C] (45) Relay Coupler [C] (42) Relay Coupler [C] (47) Relay Coupler [Proto] (18) Relay Coupler [Proto] (22) > --- WEAPON (3) ------- Advanced Remote Datajack Plasma Lance (fused) > --- INVENTORY (5) ---- Heavy Regenerative Plating Relay Coupler [C] (42) Omega Cannon Peak State ------------ > --- POWER ------------ Improved Quantum Reactor Improved Quantum Reactor Improved Quantum Reactor > --- PROPULSION ------- Biometal Medium Treads Advanced Heavy Siege Treads Advanced Heavy Siege Treads > --- UTILITY ---------- High-capacity Storage Unit Enhanced Optical Array Experimental Core Analyzer Heavy Regenerative Plating Advanced Remote Force Field Relay Coupler [NC] Relay Coupler [C] Relay Coupler [C] Relay Coupler [C] Relay Coupler [C] Relay Coupler [Sentry] Relay Coupler [Proto] > --- WEAPON ----------- Heavy Linear Accelerator Advanced Remote Datajack > --- INVENTORY -------- Improved Quantum Reactor Armored Heavy Treads Advanced Transmission Jammer Advanced Point Defense System Relay Coupler [NC] Relay Coupler [C] Relay Coupler [C] Relay Coupler [C] Relay Coupler [C] Relay Coupler [C] Relay Coupler [Proto] Relay Coupler [Proto] Relay Coupler [Proto] Enhanced Nova Cannon Omega Cannon Advanced Remote Datajack [Rating: 199] Favorites ----------- Power Reinforced Fission Core Engine Light Angular Momentum Engine Power Core Reinforced Fission Core Reactor Particle Reactor Propulsion Improved Heavy Treads Treads Improved Heavy Treads Leg Aluminum Leg Wheel Armored Huge Wheel Utility Relay Coupler [C] Device Advanced Remote Force Field Storage High-capacity Storage Unit Processor Enhanced Optical Array Hackware Relay Coupler [C] Protection Improved Medium Armor Plating Weapon Improved Remote Datajack Energy Gun Lightning Gun Energy Cannon Heavy Plasma Cannon Ballistic Gun Autogun Ballistic Cannon Heavy Mass Driver Launcher Rocket Launcher Special Weapon Improved Remote Datajack Impact Weapon Maul Slashing Weapon Chainsword Piercing Weapon Plasma Lance Build | -11 -10 -9 -9 -9 -8 -8 -8 -8 -7 -7 -7 -7 -6 -6 -6 -6 -5 -5 -5 -5 -5 -5 -4 -4 -4 -4 -3 -3 -3 -3 -3 -2 ------- Run | Yrd Mat Mat Sto Gar Mat Gar Mat Gar Fac Gar Fac Gar Fac Gar Fac Gar Fac Was Fac Gar Fac Gar Fac Gar Fac Gar Res Gar Res Tes Gar Res Slots Evolved 16 | . . 2 . . 2 . . . 2 . . . 2 . . . 2 . . . . . 2 . . . 2 . . . . 2 Power 1 | . . . . . . . . . . . . . . . . . . . . . . . . . . . . . . . . 1 Propulsion 3 | . . . . . 1 . . . 1 . . . . . . . . . . . . . . . . . 1 . . . . . Utility 11 | . . 1 . . 1 . . . 1 . . . 2 . . . 2 . . . . . 2 . . . 1 . . . . 1 Weapon 1 | . . 1 . . . . . . . . . . . . . . . . . . . . . . . . . . . . . . Parts Attached 363 | 3 9 8 9 14 19 16 3 13 5 10 8 11 14 16 6 25 6 7 7 14 8 14 3 9 11 17 28 9 3 11 11 16 Power 30 | . . 2 . 1 2 1 . 2 . . 1 . 1 1 . 5 . . 1 1 . . . . 1 3 2 . 1 1 1 3 Engine 11 | . . 2 . 1 2 . . 2 . . . . . 1 . 3 . . . . . . . . . . . . . . . . Core 6 | . . . . . . 1 . . . . . . 1 . . 1 . . 1 . . . . . 1 1 . . . . . . Reactor 13 | . . . . . . . . . . . 1 . . . . 1 . . . 1 . . . . . 2 2 . 1 1 1 3 Propulsion 47 | 2 2 . 2 4 3 2 1 2 2 . 1 2 4 1 . 3 . . . 2 . . . . 1 3 7 . . 1 . 2 Treads 33 | 2 . . 1 4 3 2 1 1 1 . . 2 2 . . 3 . . . 2 . . . . . 2 7 . . . . . Leg 2 | . . . . . . . . . . . . . . . . . . . . . . . . . . . . . . . . 2 Wheel 12 | . 2 . 1 . . . . 1 1 . 1 . 2 1 . . . . . . . . . . 1 1 . . . 1 . . Hover . | . . . . . . . . . . . . . . . . . . . . . . . . . . . . . . . . . Flight . | . . . . . . . . . . . . . . . . . . . . . . . . . . . . . . . . . Utility 193 | 1 4 3 . 5 6 8 2 4 2 7 3 6 8 12 5 10 3 6 6 10 4 9 3 6 7 9 14 7 2 5 9 7 Device 38 | 1 1 . . 1 1 . . 1 1 . . . 2 3 . 2 . 4 3 1 2 2 . . 2 1 7 . . 1 1 1 Storage 4 | . 2 . . 1 . . . . . . . . . . . . . . . . . . . . . . 1 . . . . . Processor 8 | . . 1 . . . . . . . . . . . . . . 1 . . 1 . . 1 . 1 . 1 . . 1 1 . Hackware 123 | . . . . . 4 8 2 2 1 5 2 6 6 9 4 8 1 . 3 8 2 6 2 6 4 7 3 7 2 2 7 6 Protection 20 | . 1 2 . 3 1 . . 1 . 2 1 . . . 1 . 1 2 . . . 1 . . . 1 2 . . 1 . . Artifact . | . . . . . . . . . . . . . . . . . . . . . . . . . . . . . . . . . Weapon 93 | . 3 3 7 4 8 5 . 5 1 3 3 3 1 2 1 7 3 1 . 1 4 5 . 3 2 2 5 2 . 4 1 4 Energy Gun 9 | . . . . 1 2 . . . 1 1 2 . . . . . . . . . . . . . . . . . . 2 . . Energy Cannon 17 | . . . 2 . . 1 . . . . 1 . 1 1 . 1 1 . . . 2 2 . 1 . 1 1 1 . . . 1 Ballistic Gun 27 | . . . 3 2 4 3 . 5 . 1 . 1 . . . 4 . 1 . 1 . . . . . . . . . 1 1 . Ballistic Cannon 17 | . 2 2 . 1 . . . . . . . 2 . . 1 . . . . . . 3 . 2 2 . 1 . . . . 1 Launcher 6 | . 1 . 2 . 1 . . . . . . . . . . 1 1 . . . . . . . . . . . . . . . Special Weapon 16 | . . . . . 1 1 . . . 1 . . . 1 . 1 1 . . . 2 . . . . 1 3 1 . 1 . 2 Impact Weapon 1 | . . 1 . . . . . . . . . . . . . . . . . . . . . . . . . . . . . . Slashing Weapon . | . . . . . . . . . . . . . . . . . . . . . . . . . . . . . . . . . Piercing Weapon . | . . . . . . . . . . . . . . . . . . . . . . . . . . . . . . . . . Special Melee Weapon . | . . . . . . . . . . . . . . . . . . . . . . . . . . . . . . . . . Unidentified Prototypes 18 | . 1 . 2 . 1 . . . . . 3 . . . . . 1 3 . . . . . . 2 . 2 . . 1 2 . Parts Lost 60 | . . 2 . 10 2 6 . 1 . 3 1 1 . 1 1 3 1 . 1 . . . . . 1 3 7 . . 2 . 14 Power 11 | . . 1 . 1 1 . . 1 . . . . . 1 . 1 . . 1 . . . . . . 1 . . . . . 3 Propulsion 8 | . . . . 2 . 1 . . . . . . . . . . . . . . . . . . . . 1 . . . . 4 Utility 20 | . . . . 5 . . . . . . . . . . 1 2 . . . . . . . . 1 2 3 . . 2 . 4 Weapon 21 | . . 1 . 2 1 5 . . . 3 1 1 . . . . 1 . . . . . . . . . 3 . . . . 3 Highest Loss Streak 14 | . . 2 . 3 1 3 . 1 . 2 1 1 . 1 1 1 1 . 1 . . . . . 1 2 2 . . 1 . 14 To Critical Strikes 1 | . . . . . 1 . . . . . . . . . . . . . . . . . . . . . . . . . . . Average Backups 17 | 4 11 13 13 13 17 18 19 19 18 18 18 18 16 16 16 16 16 18 17 17 17 17 13 17 18 18 18 18 17 17 17 16 Power . | 1 1 1 1 2 1 1 3 2 1 1 1 1 . . . . 1 1 1 . . . . . . . 1 1 1 1 1 . Propulsion 2 | 2 1 1 2 2 2 3 3 3 3 3 3 3 2 2 2 1 2 2 2 1 2 2 2 1 1 2 1 2 2 2 1 . Utility 9 | . 3 4 4 3 6 7 8 7 9 10 9 11 10 11 12 11 9 10 10 11 11 12 7 10 11 11 13 12 10 9 11 11 Weapon 3 | 1 6 6 5 5 6 4 4 4 4 3 3 2 1 2 2 3 4 4 3 2 2 2 2 3 3 3 1 1 2 2 3 1 Tool/Special . | . . . . . . . . . . . . . . . . . . . . . . . . . . . . . . . . . Unused Backups 109 | . 6 1 1 2 2 8 1 6 1 4 . 1 2 6 . 7 . 1 . 4 1 3 . 4 . 10 8 1 . 13 4 12 Power 9 | . . . 1 2 . 1 . 1 . . . . 1 . . . . . . . . . . . . 1 . . . 1 . 1 Propulsion 12 | . . . . . 2 . 1 . . . . . . . . . . . . . 1 . . . . 3 3 1 . 1 . . Utility 53 | . 2 . . . . 4 . 2 . 3 . 1 1 5 . 5 . . . 3 . 1 . 1 . 5 2 . . 7 4 7 Weapon 31 | . 4 1 . . . 3 . 3 1 1 . . . 1 . 2 . 1 . . . 1 . 2 . 1 3 . . 4 . 3 Tool/Special 4 | . . . . . . . . . . . . . . . . . . . . 1 . 1 . 1 . . . . . . . 1 Average Slot Usage (%) 87 | . 100 98 100 96 96 98 100 96 90 89 86 79 80 82 86 86 82 80 81 82 83 81 88 84 85 88 88 82 83 91 85 82 Engine 2 | . 14 10 11 10 7 2 . 5 7 7 4 . . . 6 8 5 5 1 . . . . . . . . . . . . . Core 2 | . . . . . . 5 8 1 . . . . 4 5 . . . . 2 5 5 5 5 5 5 2 . . . . . . Reactor 4 | . . . . . . . . . . . 2 6 5 4 6 2 5 5 5 5 5 5 5 5 5 7 8 8 9 9 8 11 Treads 12 | . 27 18 11 20 25 24 25 21 14 14 5 11 7 6 6 9 11 11 11 11 11 11 10 10 10 8 10 13 13 10 13 11 Wheel 2 | . . 3 11 1 . . . 1 7 7 11 6 2 6 6 2 . . . . . . . . . 1 2 . . 5 . . Device 6 | . . 11 11 10 8 1 . . . . . . 5 5 3 4 4 2 9 5 10 6 9 8 10 10 8 11 10 11 7 7 Storage 6 | . 14 11 11 10 8 8 8 8 7 7 7 6 5 6 6 6 5 5 5 5 5 5 5 5 5 5 4 4 4 4 4 3 Processor 2 | . . . . . . . . . . . . . . . . . 5 5 3 . . . 4 5 5 5 4 4 4 5 5 8 Hackware 20 | . . . . . 2 7 16 13 12 12 14 18 27 24 28 25 22 22 19 26 22 24 24 25 24 30 32 30 30 29 26 28 Protection 4 | . 13 9 11 10 5 7 . 2 7 7 7 . . 5 5 2 4 5 4 5 5 5 5 5 5 2 2 . . 1 4 . Energy Gun 1 | . . . . 2 13 3 . . 1 1 5 4 . . . . . . . . . . . . . . . . . 4 1 1 Energy Cannon 3 | . . . 10 . . 2 8 3 . 4 7 4 6 4 6 5 7 5 5 4 6 5 5 1 . . 1 . . 3 7 1 Ballistic Gun 6 | . 1 . 8 26 21 25 25 31 28 22 14 8 . . . 9 1 . . . . . . . . . . . . . . . Ballistic Cannon 5 | . 25 31 12 . . . . . . . . 3 6 6 6 1 3 5 5 5 4 5 8 8 10 9 5 4 4 . . 2 Special Weapon 4 | . . . . . 1 5 8 5 5 4 7 6 5 6 6 5 2 5 5 5 5 4 5 5 4 5 3 4 4 3 4 3 Peak Build Rating 199 | 7 21 26 31 45 59 50 45 59 62 64 67 90 102 101 101 104 118 130 130 132 126 125 141 130 138 148 169 175 167 179 181 199 Average Rating 103 | 6 9 24 28 32 50 45 44 47 51 57 60 72 87 91 95 97 113 122 116 127 118 118 128 127 127 135 155 161 162 171 175 189 On Entrance 92 | 6 7 21 25 30 45 46 43 45 46 50 64 67 90 82 101 96 96 117 130 118 126 118 121 116 128 133 138 160 167 165 165 177 Avg Prop Armor Cover (%) 10 | . 10 6 6 7 . . . 6 9 11 11 13 11 9 10 9 . . . . . . . . 18 10 11 . . 15 . . Naked Turns . | . . . . . . . . . . . . . . . . . . . . . . . . . . . . . . . . . Heaviest Build 172 | 15 38 44 46 46 73 73 69 79 71 92 97 105 112 126 123 117 135 113 141 146 147 147 145 142 144 135 154 143 144 155 155 172 Greatest Support 195 | 40 40 40 16 60 82 74 74 74 42 28 56 56 97 75 16 150 150 150 150 150 150 150 150 150 150 150 195 195 195 195 195 195 Greatest Overweight (x) 9 | . 3 4 4 2 . 1 . 2 2 3 3 3 9 7 7 7 . . . . . . . . 8 4 4 . . 4 . 5 Average Overweight (x) 1 | . . 1 3 . . . . . 1 2 1 2 2 5 6 2 . . . . . . . . . 1 . . . 1 . . Largest Inventory Capacity 20 | 8 15 15 15 20 20 20 20 20 20 20 20 20 20 20 20 20 20 20 20 20 20 20 20 20 20 20 20 20 20 20 20 20 Average Capacity 19 | 8 14 15 15 15 19 20 20 20 20 20 20 20 20 20 20 20 20 20 20 20 20 20 20 20 20 20 20 20 20 20 20 19 Most Carried 20 | 6 15 15 15 15 20 20 20 20 20 20 20 20 20 20 20 20 20 20 20 20 20 20 18 20 20 20 20 20 20 20 20 20 Average Carried 18 | 4 11 13 13 13 17 18 19 19 19 19 18 19 19 19 18 19 18 19 19 19 19 19 15 18 19 19 19 19 18 19 19 19 Final Capacity 20 | 8 15 15 15 15 20 20 20 20 20 20 20 20 20 20 20 20 20 20 20 20 20 20 20 20 20 20 20 20 20 20 20 5 Final Carried 20 | 3 15 13 15 15 16 20 20 19 20 20 17 19 20 20 17 20 20 20 20 20 20 19 16 20 19 20 20 20 17 20 20 5 Class Distribution -------------------- 69% | Botlord-Tank 8% | Bothacker-Tank 4% | Mutant 4% | Tank 3% | Scavenger-Tank Dominant Class ---------------- Mutant | -10/Materials Tank | -9/Materials Tank | -9/Storage Scavenger-Tank | -9/Garrison Scavenger-Tank | -8/Materials Bothacker-Tank | -8/Garrison Bothacker-Gunner | -8/Materials Commander-Gunner | -8/Garrison Bothacker-Tank | -7/Factory Botlord-Tank | -7/Garrison Bothacker-Tank | -7/Factory Botlord-Executioner | -7/Garrison Botlord-Tank | -6/Factory Botlord-Tank | -6/Garrison Botlord-Tank | -6/Factory Botlord-Tank | -6/Garrison Botlord-Tank | -5/Factory Botlord-Tank | -5/Waste Botlord-Tank | -5/Factory Botlord-Tank | -5/Garrison Botlord-Tank | -5/Factory Botlord-Tank | -5/Garrison Botlord-Tank | -4/Factory Botlord-Tank | -4/Garrison Botlord-Tank | -4/Factory Botlord-Tank | -4/Garrison Botlord-Tank | -3/Research Botlord-Tank | -3/Garrison Botlord-Tank | -3/Research Botlord-Tank | -3/Testing Botlord-Tank | -3/Garrison Botlord-Tank | -2/Research Resources | -11 -10 -9 -9 -9 -8 -8 -8 -8 -7 -7 -7 -7 -6 -6 -6 -6 -5 -5 -5 -5 -5 -5 -4 -4 -4 -4 -3 -3 -3 -3 -3 -2 ----------- Run | Yrd Mat Mat Sto Gar Mat Gar Mat Gar Fac Gar Fac Gar Fac Gar Fac Gar Fac Was Fac Gar Fac Gar Fac Gar Fac Gar Res Gar Res Tes Gar Res Matter Collected 25532 | 214 300 516 615 826 781 935 96 1120 227 1042 107 961 501 671 346 1671 782 278 339 1354 175 1124 152 835 1859 1624 2143 466 580 606 451 1835 Remotely 158 | . . . . . . . . . . . . . . . . . . . . . . . . . . . 158 . . . . . Salvage Created 16098 | 135 352 546 1134 966 1224 764 249 595 423 610 53 458 691 296 184 914 183 . 248 545 55 274 165 216 601 1186 897 129 179 330 680 816 Parts 876 | 11 34 30 69 64 62 40 11 29 27 44 1 23 29 18 16 45 6 . 5 25 2 9 7 9 20 52 60 7 6 24 31 60 Haulers Intercepted 11 | . 2 1 4 . 2 . 1 . . . . . . . . . . . . . . . . . 1 . . . . . . . Recyclers Shooed 13 | . . . 3 . 2 . . . . . . . . . . . . . . . . . . . 1 . 4 . 1 . . 2 Parts Field Recycled . | . . . . . . . . . . . . . . . . . . . . . . . . . . . . . . . . . Retrieved Matter . | . . . . . . . . . . . . . . . . . . . . . . . . . . . . . . . . . Parts Self-Destructed . | . . . . . . . . . . . . . . . . . . . . . . . . . . . . . . . . . Prevented . | . . . . . . . . . . . . . . . . . . . . . . . . . . . . . . . . . Parts Restored . | . . . . . . . . . . . . . . . . . . . . . . . . . . . . . . . . . Kills | -11 -10 -9 -9 -9 -8 -8 -8 -8 -7 -7 -7 -7 -6 -6 -6 -6 -5 -5 -5 -5 -5 -5 -4 -4 -4 -4 -3 -3 -3 -3 -3 -2 ------- Run | Yrd Mat Mat Sto Gar Mat Gar Mat Gar Fac Gar Fac Gar Fac Gar Fac Gar Fac Was Fac Gar Fac Gar Fac Gar Fac Gar Res Gar Res Tes Gar Res Combat Hostiles Destroyed 290 | . 12 8 20 27 22 19 4 8 6 15 1 8 5 7 3 16 7 . 3 13 1 5 2 4 7 10 13 15 2 4 10 13 Melee 4 | . . . . 1 . . . . . . . . . 1 . . . . . . . . . . . . . . . . . 2 Guns 89 | . . . 3 18 18 14 3 7 6 13 1 3 . . . 3 . . . . . . . . . . . . . . . . Cannons 158 | . 6 8 7 1 . 5 . 1 . 1 . 5 5 6 2 11 3 . 3 13 1 5 2 4 7 10 12 15 2 4 8 11 AOE 33 | . 6 . 9 7 4 . . . . 1 . . . . 1 1 3 . . . . . . . . . 1 . . . . . Classes Destroyed 24 | 2 6 2 3 3 1 . 1 1 . . . 1 . 1 . . . . . . . . . . . . 1 1 . 1 . . Worker 28 | . 3 1 1 . 1 . . . 3 . . . 4 . . . 1 . . . . . . . 2 . 5 . 1 1 . 5 Builder 7 | . . . 1 . . . . . . . . . . . . . . . . . . . . . . . 1 . . . . 5 Tunneler 6 | 4 . 1 . . . . . . . . . . . . . . 1 . . . . . . . . . . . . . . . Hauler 11 | . 2 1 4 . 2 . 1 . . . . . . . . . . . . . . . . . 1 . . . . . . . Recycler 13 | 1 . 1 3 . 1 . . . . . . . 3 . . . . . . . . . 1 . . . 2 . 1 . . . Mechanic 1 | . . . . . . . . . . . . 1 . . . . . . . . . . . . . . . . . . . . Operator 5 | . 1 . 2 . . . . . . . . 1 . . . . . . . . . . . . . . 1 . . . . . Watcher 16 | . 3 2 1 1 2 . . . 2 1 . . 2 . . . . . . . . . . . 1 . . . . 1 . . Swarmer 53 | . 6 . . 7 3 4 . . 1 8 . 3 . . 2 1 5 . . 2 1 2 2 1 . 1 1 . 1 1 1 . Cutter 14 | . . . . . . . . 1 . 1 . 1 . . . 3 . . . 2 . . . . . . . 3 . . 3 . Saboteur 1 | . . . . . . . . . . . . . . 1 . . . . . . . . . . . . . . . . . . Grunt 77 | . 6 2 11 6 11 4 3 2 2 . 1 1 1 3 . 2 2 . . 4 1 4 . 1 1 2 3 . . . 3 1 Brawler 12 | . . . 3 1 3 1 . 1 . . . . . . . . . . 2 . . . . . 1 . . . . . . . Duelist 10 | . . 1 1 2 . 1 . . . . . . . 1 . . 1 . 1 . . . . 1 1 . . . . . . . Protector 1 | . . . 1 . . . . . . . . . . . . . . . . . . . . . . . . . . . . . Researcher 1 | . . . . . . . . . . . . . . . . . . . . . . . . . . . . . . 1 . . Sentry 45 | . . 5 6 4 4 4 . 2 2 4 . 1 2 1 . 3 1 . . 1 . . . . 1 2 . . . . 2 . Demolisher 2 | . . . . . 1 . . . . . . . . . . . . . . . . 1 . . . . . . . . . . Specialist 8 | . . . . 3 . . . . . . . . . 1 . . . . . . . . . . 1 2 . . . . . 1 Hunter 12 | . . . . . . . 1 1 . 1 . . 2 . 2 . . . . . . . . . . . 1 . . . . 4 Programmer 58 | . . . . 3 . 5 . 2 1 1 . 2 . . 1 6 . . 1 5 . . . 1 4 5 7 1 1 3 2 7 Heavy 1 | . . . . . . . . . . . . . . . . . . . . . . . . . . . 1 . . . . . Behemoth 5 | . . . . 1 . . . . . . . . . . . 1 1 . . . . . . . 1 1 . . . . . . Assembled 11 | . . . . . . . . . . . . . . . . . . . . . . . . . . . . 11 . . . . Infiltrator 3 | . . . . . . . . . . . . . . . . . . . . . . . . 1 . 2 . . . . . . Best Kill Streak 10 | 3 10 3 10 5 4 5 2 2 3 5 1 3 3 1 1 3 4 . 1 2 1 2 3 1 2 2 3 6 2 1 3 7 Combat Bots Only 7 | . 6 2 7 5 3 5 1 2 2 5 1 3 2 1 1 3 4 . 1 2 1 2 2 1 2 2 2 6 1 1 3 4 Max Kills in Single Turn 4 | 1 4 2 3 3 2 2 1 1 2 1 1 2 2 1 2 1 4 . 1 1 1 1 2 1 2 2 1 1 1 1 1 1 Gunslinging 1 | . . . . 1 1 1 . . . . . . . . . . . . . . . . . . . . . . . . . . Exploded 4 | . 4 . 3 3 2 . . . . 1 . . . . 1 1 3 . . . . . . . . . 1 . . . . . Melee 1 | . . . . 1 . . . . . . . . . 1 . . . . . . . . . . . . . . . . . 1 Uniques/NPCs Destroyed . | . . . . . . . . . . . . . . . . . . . . . . . . . . . . . . . . . Combat | -11 -10 -9 -9 -9 -8 -8 -8 -8 -7 -7 -7 -7 -6 -6 -6 -6 -5 -5 -5 -5 -5 -5 -4 -4 -4 -4 -3 -3 -3 -3 -3 -2 -------- Run | Yrd Mat Mat Sto Gar Mat Gar Mat Gar Fac Gar Fac Gar Fac Gar Fac Gar Fac Was Fac Gar Fac Gar Fac Gar Fac Gar Res Gar Res Tes Gar Res Hostile Shots Fired 1984 | . 11 17 31 135 54 101 16 21 53 116 2 61 52 36 10 132 53 . 42 77 16 48 17 47 39 103 151 79 8 103 88 265 Missed 604 | . 6 4 13 38 15 25 6 6 26 47 . 14 14 14 1 45 14 . 11 22 6 19 5 23 10 40 44 25 4 24 16 67 Hits 1380 | . 5 13 18 97 39 76 10 15 27 69 2 47 38 22 9 87 39 . 31 55 10 29 12 24 29 63 107 54 4 79 72 198 Melee 84 | . . 2 . 13 . . . 1 . . . 2 . 3 . 3 . . . 2 . . . . 1 1 . 9 . . 22 25 Projectile 1296 | . 5 11 18 84 39 76 10 14 27 69 2 45 38 19 9 84 39 . 31 53 10 29 12 24 28 62 107 45 4 79 50 173 AOE 18 | . . . . . 6 . . 2 . 1 . . . . . 3 . . . 1 . . . 1 2 . 1 . . . 1 . Critical Strikes 86 | . . 1 . 4 1 2 . 3 . . 1 . 4 . 1 5 . . 2 7 1 1 1 . 2 4 8 6 1 1 14 16 Part Disruptions 6 | . . . . . . . . . . . . . . . . . . . . . . . . . . . . . . . . 6 Damage Taken 23405 | . 127 211 285 1540 770 1002 159 308 268 844 215 853 310 272 205 1501 827 . 492 670 116 476 169 270 951 723 2202 650 74 1195 1149 4571 Core 2543 | . . 37 42 237 44 105 26 44 21 64 . 88 32 53 . 49 38 . 40 49 . 29 30 3 93 45 96 68 . 71 60 1079 Absorbed by Shields 6904 | . . . . . . . . . . . . . 334 171 51 149 537 . 215 447 78 380 161 186 399 588 789 395 50 394 402 1178 Reduced by Siege Mode 510 | . . . . . . . . . . . . . . . . 51 45 . . 13 . . . 10 9 36 55 7 . . 80 204 Ignored by Resistances 2550 | . . . 20 95 27 56 20 . 38 94 . 79 86 40 30 245 188 . 46 86 6 41 39 96 89 159 427 150 25 67 62 239 Regen/Repaired (Parts) 3109 | . . . . . . 63 . 16 38 122 26 230 66 . 173 71 163 . 269 . 161 . . . 262 . 93 . 229 247 858 22 Core Remaining (%) 70 | 100 100 . . 25 . . . 32 . . . 63 . . . 78 . . . . . 79 . . . 81 . . . . 72 . Volleys Fired 1952 | 12 26 20 55 61 55 78 27 93 28 87 16 66 53 59 31 122 35 . 40 129 26 81 21 65 81 112 123 62 29 68 66 125 Largest 5 | 2 2 3 3 3 5 5 4 5 5 5 4 4 3 2 1 3 3 . 2 2 2 2 2 2 3 2 2 2 1 2 1 2 Hottest 249 | 40 60 90 159 161 183 166 164 187 155 249 221 216 245 155 88 156 245 . 155 155 180 203 167 167 236 178 208 159 65 214 120 190 Shots Fired 2937 | 24 47 59 152 159 150 159 54 144 83 169 19 100 75 71 31 147 49 . 48 160 28 88 26 87 114 157 167 64 29 83 65 129 Gun 887 | 24 . . 26 143 133 112 27 121 72 109 3 28 . . . 42 3 . . . . . . . . . 2 . . 31 2 9 Cannon 1370 | . 42 59 119 9 . 23 10 14 . 23 1 52 46 44 10 71 37 . 27 128 14 45 10 66 69 127 119 44 16 29 40 76 Launcher 26 | . 5 . 7 7 2 . . 1 . 3 . . . . . . 1 . . . . . . . . . . . . . . . Special 654 | . . . . . 15 24 17 8 11 34 15 20 29 27 21 34 8 . 21 32 14 43 16 21 45 30 46 20 13 23 23 44 Kinetic 1624 | 24 42 59 116 142 86 98 27 121 68 107 2 30 21 17 3 72 23 . 10 77 10 30 7 55 64 99 95 42 16 . . 61 Thermal 479 | . . . 29 9 . 23 10 14 4 25 2 42 25 11 . 16 17 . 17 51 4 15 3 11 5 28 26 . . 48 29 15 Explosive 26 | . 5 . 7 7 2 . . 1 . 3 . . . . . . 1 . . . . . . . . . . . . . . . Electromagnetic 154 | . . . . 1 47 14 . . . . . 8 . 16 7 25 . . . . . . . . . . . 2 . 12 13 9 Robot Hit Streak 43 | 5 9 11 14 18 19 9 14 43 9 25 4 7 11 9 16 12 14 . 10 13 14 13 8 9 12 32 20 10 5 10 15 15 Robot Miss Streak 7 | 1 3 3 5 4 5 2 4 3 4 7 1 4 2 5 2 3 3 . 3 3 2 2 1 4 4 4 5 4 3 3 3 5 Penetration Max 1 | . . . . . 1 1 . 1 . . . 1 1 . . 1 . . . . . . . . . 1 1 . . . . . Secondary Targets 14 | . . . . 4 5 1 . . . 4 . . . . . . . . . . . . . . . . . . . . . . Max Gunslinging Chain 1 | . . . . 1 1 1 . . . 1 . . . . . . . . . . . . . . . . . . . . . . Shots Hit Robots 1783 | 15 27 24 83 115 90 95 40 104 42 106 12 56 45 41 26 69 33 . 29 78 19 55 19 33 69 118 105 38 16 48 49 84 Core Hits 619 | 6 23 15 47 56 43 27 9 40 19 51 1 20 12 9 6 21 15 . 6 19 2 8 3 11 21 32 27 15 3 15 11 26 Critical Kills 22 | . . . 1 . 1 1 1 . . . . . . . . 6 . . . . . . . . . 6 4 . . . 2 . Critical Parts Destroyed 28 | . . . 1 . . . . . . . . . . . . 7 . . . . . . . . . 12 8 . . . . . Critical Strikes 108 | . 2 . 8 . 2 1 1 . . . . 1 4 . 1 19 1 . . 8 1 1 . . 4 27 16 4 . . 2 5 Meltdown 6 | . . . 1 . . . 1 . . . . . . . . . . . . . . . . . . 2 . . . . 2 . Destroy 54 | . . . 1 . 1 1 . . . . . . . . . 15 . . . . . . . . 2 20 14 . . . . . Blast 46 | . 2 . 6 . . . . . . . . 1 4 . 1 3 1 . . 8 1 1 . . 2 5 2 4 . . . 5 Corrupt 2 | . . . . . 1 . . . . . . . . . . 1 . . . . . . . . . . . . . . . . Melee Attacks 43 | . . 2 . 12 . 22 . . . . . . . . . . . . . . . . . . . . . . . . . 7 Impact 36 | . . 2 . 12 . 22 . . . . . . . . . . . . . . . . . . . . . . . . . . Slashing . | . . . . . . . . . . . . . . . . . . . . . . . . . . . . . . . . . Piercing 7 | . . . . . . . . . . . . . . . . . . . . . . . . . . . . . . . . 7 Sneak Attacks . | . . . . . . . . . . . . . . . . . . . . . . . . . . . . . . . . . Combat Hostiles . | . . . . . . . . . . . . . . . . . . . . . . . . . . . . . . . . . Follow-up Attacks . | . . . . . . . . . . . . . . . . . . . . . . . . . . . . . . . . . Damage Inflicted 50395 | 184 1010 492 2467 2945 2109 1876 546 1545 561 1613 18 1842 1602 840 574 1924 2727 . 807 3387 415 1431 392 1152 1980 3555 2983 1974 488 1381 1404 4171 Guns 10175 | 184 . . 315 1658 1769 1412 367 1431 561 1347 18 313 . . . 194 13 . . . . . . . . . . . . 529 13 51 Cannons 34619 | . 490 489 1304 202 . 464 179 111 . 215 . 1191 1602 840 420 1730 1304 . 779 3387 415 1431 338 1152 1914 3548 2889 1974 466 641 1391 3753 Explosions 4806 | . 511 . 843 1084 336 . . 3 . 51 . 338 . . 154 . 1403 . . . . . . . . . . . . 83 . . Melee 75 | . . . . . . . . . . . . . . . . . . . . . . . . . . . . . . . . 75 Ramming 720 | . 9 3 5 1 4 . . . . . . . . . . . 7 . 28 . . . 54 . 66 7 94 . 22 128 . 292 Kinetic 33550 | 184 490 489 1404 1658 1274 1271 367 1431 543 1321 18 659 1309 379 186 1688 980 . 406 2532 352 1146 259 991 1746 2454 2192 1974 466 . . 3381 Thermal 10497 | . . . 215 202 115 464 179 111 18 241 . 793 293 130 154 34 1330 . 373 855 63 285 79 161 168 1094 697 . . 998 1073 372 Explosive 3461 | . 511 . 843 1084 221 . . 3 . 51 . 338 . . . . 410 . . . . . . . . . . . . . . . Electromagnetic 2092 | . . . . . 495 141 . . . . . 52 . 331 234 202 . . . . . . . . . . . . . 255 331 51 Impact . | . . . . . . . . . . . . . . . . . . . . . . . . . . . . . . . . . Slashing . | . . . . . . . . . . . . . . . . . . . . . . . . . . . . . . . . . Piercing 75 | . . . . . . . . . . . . . . . . . . . . . . . . . . . . . . . . 75 Highest Corruption 28 | . . 3 . 5 1 10 . . . 10 10 14 3 7 7 13 . 15 20 22 . . . . 4 10 10 10 . 9 20 28 Average Corruption 9 | . . 2 . 3 1 8 . . . 10 10 12 3 4 7 12 . 15 16 20 . . . . 2 6 8 10 . 5 14 8 Corruption Purged . | . . . . . . . . . . . . . . . . . . . . . . . . . . . . . . . . . Corruption Blocked . | . . . . . . . . . . . . . . . . . . . . . . . . . . . . . . . . . Effects 617 | . . 7 . 27 4 29 . . . 31 18 47 . 17 40 81 . 1 53 77 . . . . 8 28 59 7 . 18 50 15 Message Errors 132 | . . . . 7 1 6 . . . 5 3 13 . 2 8 14 . . 11 19 . . . . 3 6 11 . . 5 13 5 Matter Fused 147 | . . 2 . 4 1 7 . . . 9 4 6 . 3 16 15 . . 16 15 . . . . 3 8 17 3 . 3 13 2 Heat Flow Errors 68 | . . 1 . 5 . 1 . . . 4 3 5 . 1 5 12 . 1 4 11 . . . . 1 3 2 . . 1 6 2 Energy Discharges 86 | . . 3 . 5 1 4 . . . 5 2 6 . 4 . 17 . . 3 11 . . . . . 6 9 2 . 1 6 1 Parts Rejected 7 | . . . . . . 1 . . . . . 1 . . . . . . . . . . . . . . 3 . . . . 2 Parts Fused 5 | . . . . . . . . . . . . 1 . . 1 1 . . 1 1 . . . . . . . . . . . . Data Loss (minor) 70 | . . . . 3 1 2 . . . 2 3 4 . 5 6 10 . . 6 8 . . . . . . 10 . . 4 5 1 Data Loss (major) 27 | . . 1 . 1 . 1 . . . 1 2 1 . 1 1 3 . . 4 2 . . . . 1 2 2 . . . 3 1 Misfires 21 | . . . . . . 2 . . . . . 4 . . 1 3 . . 3 1 . . . . . 1 2 . . 2 1 1 Alerts 14 | . . . . 1 . . . . . 2 . 1 . 1 1 1 . . 2 2 . . . . . . . 1 . 2 . . Misdirections 10 | . . . . . . . . . . 3 1 . . . . . . . 2 1 . . . . . . 2 1 . . . . Weapon Failures 30 | . . . . 1 . 5 . . . . . 5 . . 1 5 . . 1 6 . . . . . 2 1 . . . 3 . Overload Shots . | . . . . . . . . . . . . . . . . . . . . . . . . . . . . . . . . . Overflow Damage 2710 | . 48 . 13 22 1 75 . . . 29 . 89 255 55 85 303 158 . 83 385 43 116 . . 134 94 103 89 118 59 4 349 Projectiles 2297 | . . . 5 . . 75 . . . 24 . 17 255 55 85 303 3 . 70 385 43 116 . . 134 94 81 89 118 . 4 341 Explosions 370 | . 48 . 8 22 1 . . . . 5 . 72 . . . . 155 . . . . . . . . . . . . 59 . . Melee 43 | . . . . . . . . . . . . . . . . . . . 13 . . . . . . . 22 . . . . 8 Knockbacks 113 | . 2 2 1 . . . . . . . . 2 6 3 1 5 3 . 2 8 3 3 . 8 11 12 9 10 1 1 . 20 Impact 3 | . . . . . . . . . . . . . . . . . . . . . . . . . . . 1 . . 1 . 1 Kinetic 101 | . 2 2 1 . . . . . . . . 2 5 3 1 5 2 . 2 8 3 3 . 8 9 11 8 9 1 . . 16 Secondary 9 | . . . . . . . . . . . . . 1 . . . 1 . . . . . . . 2 1 . 1 . . . 3 Self-Inflicted Damage 573 | . 76 . 51 4 . . . . . 75 . 110 . . 29 . 178 . . . . 47 . . . . . . . 3 . . Shots 12 | . 2 . 1 1 . . . . . 2 . 1 . . 1 . 3 . . . . 1 . . . . . . . . . . Rammed 44 | . 1 1 1 . 1 . . . . . . . . . . . 1 . 1 . . . 4 . 3 1 3 . . 9 . 18 Targets Rammed 49 | . 2 1 1 1 1 . . . . . . . . . . . 1 . 1 . . . 4 . 4 1 3 . 1 9 . 19 Kicked . | . . . . . . . . . . . . . . . . . . . . . . . . . . . . . . . . . Crushed 5 | . 1 . . 1 . . . . . . . . . . . . . . . . . . . . 1 . . . 1 . . 1 Highest Temperature 495 | . 27 208 384 433 297 249 96 147 100 254 233 150 157 132 213 390 349 85 247 475 81 139 184 152 352 322 324 51 . 495 429 180 Average Temperature 81 | . 8 38 111 81 80 100 30 41 20 35 100 43 25 16 52 65 131 51 99 129 39 44 66 30 88 81 83 23 . 99 132 54 Received Heat Transfer 2972 | . 9 42 84 258 207 180 45 108 33 144 45 126 40 45 21 712 56 . 34 159 44 93 22 16 24 53 52 4 . 224 74 18 Effects 33 | . . . 2 3 . . . . . . . . . . . 3 . . . 5 . . . . 2 1 7 . . 5 5 . Shutdowns 8 | . . . . 1 . . . . . . . . . . . 1 . . . 4 . . . . . . . . . 2 . . Energy Bleed 7 | . . . 2 . . . . . . . . . . . . . . . . 1 . . . . . 1 2 . . . 1 . Interference 15 | . . . . 2 . . . . . . . . . . . 2 . . . . . . . . 2 . 5 . . 3 1 . Short Circuit 2 | . . . . . . . . . . . . . . . . . . . . . . . . . . . . . . . 2 . Damage (minor) 1 | . . . . . . . . . . . . . . . . . . . . . . . . . . . . . . . 1 . Siege Activations 33 | . . . . . . . . . . . . . . 1 . 3 1 . . 3 . 2 1 2 4 4 5 1 . . 2 4 Total Turns 558 | . . . . . . . . . . . . . . 4 . 85 17 . . 47 . 21 3 17 51 93 115 3 . . 36 66 Longest Duration 57 | . . . . . . . . . . . . . . 4 . 42 17 . . 27 . 13 3 14 25 34 57 3 . . 31 47 Martial Activations . | . . . . . . . . . . . . . . . . . . . . . . . . . . . . . . . . . Shielding Activations . | . . . . . . . . . . . . . . . . . . . . . . . . . . . . . . . . . Robots Disrupted . | . . . . . . . . . . . . . . . . . . . . . . . . . . . . . . . . . Combat Hostiles . | . . . . . . . . . . . . . . . . . . . . . . . . . . . . . . . . . Robots Corrupted 6 | . . . . . . . . . . . . . . . . . 1 . . . . . . . . . 1 . . 1 1 2 Combat Hostiles 1 | . . . . . . . . . . . . . . . . . . . . . . . . . . . . . . . 1 . Parts Fried 15 | . . . . . 2 . . . . . . . . . 1 . 1 . . . . . . . 3 . 1 . . 3 1 3 Impact Corruptions 7 | . . . . . . . . . . . . . . . . . 1 . 1 . . . . . . . 3 . . . . 2 Robots Melted 7 | . . . 1 . . . 1 . . . . . . . . . 1 . . . . . . . . 2 . . . . 2 . Combat Hostiles 4 | . . . 1 . . . 1 . . . . . . . . . 1 . . . . . . . . . . . . . 1 . Parts Melted 29 | . . . 3 . . 3 2 . . 1 . 2 1 . 1 . . . . 1 . . 1 1 . 1 1 . . 2 8 1 Heat Transferred 11553 | . . . 370 333 50 600 250 150 37 350 . 1200 450 200 250 50 1100 . 550 1250 100 368 74 148 148 962 592 . . 919 794 258 Parts Sabotaged 6 | . . . . . . . . . . . . . . 5 . . . . . . . . . . . . . 1 . . . . Parts Stolen . | . . . . . . . . . . . . . . . . . . . . . . . . . . . . . . . . . Parts Stripped . | . . . . . . . . . . . . . . . . . . . . . . . . . . . . . . . . . Power Chain Reactions 3 | . . . . . 1 . . . . . . . . . 1 . . . . . . . . . . . . . . 1 . . Alert | -11 -10 -9 -9 -9 -8 -8 -8 -8 -7 -7 -7 -7 -6 -6 -6 -6 -5 -5 -5 -5 -5 -5 -4 -4 -4 -4 -3 -3 -3 -3 -3 -2 ------- Run | Yrd Mat Mat Sto Gar Mat Gar Mat Gar Fac Gar Fac Gar Fac Gar Fac Gar Fac Was Fac Gar Fac Gar Fac Gar Fac Gar Res Gar Res Tes Gar Res Maximum Alert Level 5 | . 1 . 2 4 3 4 2 2 1 3 2 4 3 5 3 4 4 2 . 3 2 4 2 2 1 1 1 . . . 1 . Low Security (%) 42 | 100 62 100 14 . . . 17 32 73 19 39 3 24 6 12 . . 13 100 24 3 . 44 21 85 83 97 100 100 100 60 100 Level 1 14 | . 37 . 19 . 7 15 . 52 26 21 14 17 . 9 47 . . 82 . 15 72 16 . 24 14 16 2 . . . 39 . Level 2 18 | . . . 66 10 43 39 82 15 . 30 45 10 61 7 36 21 9 3 . 43 23 19 54 53 . . . . . . . . Level 3 14 | . . . . 45 49 26 . . . 28 . 36 14 41 3 55 32 . . 17 . 18 . . . . . . . . . . Level 4 10 | . . . . 44 . 18 . . . . . 33 . 32 . 23 58 . . . . 45 . . . . . . . . . . Level 5 . | . . . . . . . . . . . . . . 1 . . . . . . . . . . . . . . . . . . High Security . | . . . . . . . . . . . . . . . . . . . . . . . . . . . . . . . . . Max Security . | . . . . . . . . . . . . . . . . . . . . . . . . . . . . . . . . . Peak Influence 1650 | 10 361 139 698 1409 825 1178 584 455 238 872 473 1365 759 1650 865 1323 1364 409 187 816 430 1290 676 597 312 358 210 132 28 102 278 164 Initial 865 | . 3 103 35 448 686 238 573 31 238 42 457 172 716 107 865 413 694 409 119 98 428 235 676 112 312 23 201 . 1 . 61 156 Average 426 | 2 122 85 453 1049 637 735 454 260 168 482 284 831 508 972 395 909 1061 288 62 451 321 902 329 354 81 146 18 46 4 26 164 23 Influence Increases 21736 | 25 528 328 965 1081 706 1080 266 524 235 1070 380 1323 770 1823 1033 1160 1105 . 530 948 440 1115 417 605 461 505 424 226 109 725 457 372 Destroy 0b10 Robot/C 8567 | . 240 160 380 620 480 480 140 280 140 500 80 580 260 660 345 450 285 . 225 408 180 374 160 190 110 130 170 60 40 200 110 130 Destroy 0b10 Robot/NC 538 | 25 45 30 70 5 35 . 20 10 25 5 15 10 45 5 28 16 40 . 4 3 . . 9 . 12 12 27 . 6 6 . 30 Destroy Leader 1173 | . 70 76 112 30 118 . 24 30 54 10 22 30 54 40 82 40 66 . 32 6 24 29 31 15 27 15 45 . 15 41 10 25 Allied During Kill 4096 | . . 14 23 28 19 17 45 56 8 236 92 245 82 416 409 189 183 . 103 243 190 403 200 205 98 71 70 29 17 221 113 71 Trap Triggered on 0b10 10 | . . . 10 . . . . . . . . . . . . . . . . . . . . . . . . . . . . . Successful Hack 402 | . 16 46 3 14 15 28 17 . 7 14 . 28 36 . 17 . 13 . . . 10 5 3 15 30 7 31 4 . 17 . 26 Select Force Hacks 60 | . 60 . . . . . . . . . . . . . . . . . . . . . . . . . . . . . . . Disable Machine 663 | . 45 . 105 15 . . 15 . . . 30 . 45 15 96 12 120 . 12 . 9 . 8 8 32 . . . 8 80 . 8 Anti-Garrison Action 3023 | . . . . 200 . 500 . 100 . 200 . 300 . 513 . 340 . . . 180 . 165 . 100 . 200 . 100 . . 125 . Destroy Structure 1713 | . 52 2 30 94 24 40 5 33 1 90 5 115 12 69 56 77 234 . 14 99 18 131 6 72 55 62 73 33 23 55 75 58 Partial Spotted 32 | . . . . . . . . . . . . . . . . . 24 . . . . . . . . . . . . . . 8 Lose Combat Pursuer 397 | . . . . 75 15 15 . 15 . 15 . 15 . 105 . 36 . . . 9 9 8 . . 8 8 8 . . 16 24 16 Miscellaneous 1062 | . . . 232 . . . . . . . 136 . 236 . . . 140 . 140 . . . . . 89 . . . . 89 . . Influence Decreases 21722 | 20 288 488 360 362 1748 269 1395 118 629 259 1006 204 1981 327 2092 428 1257 1000 561 272 920 161 1547 168 1024 181 782 223 111 644 261 636 Entered New Map 7530 | . 2 142 50 242 723 129 605 18 217 19 415 74 649 47 785 178 629 762 52 42 388 101 614 48 285 11 157 . 2 1 21 122 Time Decay 6133 | 20 286 326 270 . 350 . 270 . 222 . 206 . 522 . 420 . 458 238 239 . 302 . 368 . 495 . 355 . 109 403 . 274 Lost Part 409 | . . 20 . 100 20 60 . 10 . 30 10 10 . 10 10 30 10 . 10 . . . . . . 30 10 . . 20 . 19 Lost Ally 3788 | . . . 40 20 80 80 20 90 40 210 . 120 210 270 40 220 160 . 110 230 80 60 40 120 244 140 260 223 . 220 240 221 Purge Threat 3862 | . . . . . 575 . 500 . 150 . 375 . 600 . 837 . . . 150 . 150 . 525 . . . . . . . . . Squads Dispatched 102 | . 3 2 2 . 5 . . . 3 . 2 . 6 . 7 . 7 . 5 . 4 . 4 . 12 . 13 . 2 17 . 8 Investigation 18 | . 3 1 . . . . . . 2 . . . 3 . 1 . . . 1 . 2 . . . 2 . 1 . . 1 . 1 Extermination 29 | . . . . . . . . . 1 . . . 1 . 2 . 2 . 2 . 1 . 2 . 4 . 5 . 1 4 . 4 Reinforcement 38 | . . 1 1 . 1 . . . . . 1 . 2 . 4 . 4 . 2 . 1 . 1 . 1 . 7 . 1 8 . 3 Assault 5 | . . . 1 . 1 . . . . . . . . . . . 1 . . . . . . . 2 . . . . . . . Garrison 12 | . . . . . 3 . . . . . 1 . . . . . . . . . . . 1 . 3 . . . . 4 . . Intercept . | . . . . . . . . . . . . . . . . . . . . . . . . . . . . . . . . . Searches Triggered . | . . . . . . . . . . . . . . . . . . . . . . . . . . . . . . . . . Construction Impeded 5 | . . . . . . . . . . . . . . . 1 . 2 . . . . . . . . . 1 . 1 . . . Haulers Reinforced 2 | . . . . . . . . . . . . . 2 . . . . . . . . . . . . . . . . . . . Active Scanning Responses . | . . . . . . . . . . . . . . . . . . . . . . . . . . . . . . . . . Cargo Convoy Interrupts 1 | . . . . . . . . . . . . . . . . . . . . . . . . . . . . . . . . 1 Alert ID Control Effect 196 | . . . . . . . . . . . . . . . . . . . . . . . . 14 45 13 31 . 9 27 31 26 Stealth | -11 -10 -9 -9 -9 -8 -8 -8 -8 -7 -7 -7 -7 -6 -6 -6 -6 -5 -5 -5 -5 -5 -5 -4 -4 -4 -4 -3 -3 -3 -3 -3 -2 --------- Run | Yrd Mat Mat Sto Gar Mat Gar Mat Gar Fac Gar Fac Gar Fac Gar Fac Gar Fac Was Fac Gar Fac Gar Fac Gar Fac Gar Res Gar Res Tes Gar Res Distress Signals 34 | . 1 . 2 1 2 . 2 . 2 . 1 . 1 . 2 . 2 . . . . . 3 . 3 . 3 . 1 3 . 5 Communications Jammed 829 | . . . . . . . . . . . . . . . . . . . 107 . . . 9 . 335 . 21 . . 1 . 356 Distress Signals 820 | . . . . . . . . . . . . . . . . . . . 106 . . . 9 . 327 . 21 . . 1 . 356 Times Spotted 1129 | . 16 10 24 33 40 41 16 16 11 46 7 38 30 45 25 46 31 . 40 62 19 54 21 46 54 43 93 46 20 40 46 70 Peak Tracking Total 13 | . 7 5 7 5 5 5 3 3 3 7 2 8 4 8 6 5 6 . 7 5 3 5 3 6 6 8 8 13 3 6 11 12 Tactical Retreats 28 | . . . . 3 1 1 . 1 . 1 . 1 . 4 . 2 . . . 1 1 1 . . 1 1 1 3 . 2 1 2 Traps | -11 -10 -9 -9 -9 -8 -8 -8 -8 -7 -7 -7 -7 -6 -6 -6 -6 -5 -5 -5 -5 -5 -5 -4 -4 -4 -4 -3 -3 -3 -3 -3 -2 ------- Run | Yrd Mat Mat Sto Gar Mat Gar Mat Gar Fac Gar Fac Gar Fac Gar Fac Gar Fac Was Fac Gar Fac Gar Fac Gar Fac Gar Res Gar Res Tes Gar Res Traps Triggered 43 | . 1 1 . 5 1 1 . . . 2 . . 2 2 . 5 1 . 1 . . 2 . . 4 1 3 5 . 1 4 1 Indirectly . | . . . . . . . . . . . . . . . . . . . . . . . . . . . . . . . . . Trap Hack Attempts . | . . . . . . . . . . . . . . . . . . . . . . . . . . . . . . . . . Triggered . | . . . . . . . . . . . . . . . . . . . . . . . . . . . . . . . . . Disarmed . | . . . . . . . . . . . . . . . . . . . . . . . . . . . . . . . . . Reprogrammed 4 | . . . 4 . . . . . . . . . . . . . . . . . . . . . . . . . . . . . Reused 1 | . . . 1 . . . . . . . . . . . . . . . . . . . . . . . . . . . . . Traps Extracted . | . . . . . . . . . . . . . . . . . . . . . . . . . . . . . . . . . Installed . | . . . . . . . . . . . . . . . . . . . . . . . . . . . . . . . . . Triggered 1 | . . . 1 . . . . . . . . . . . . . . . . . . . . . . . . . . . . . Machines | -11 -10 -9 -9 -9 -8 -8 -8 -8 -7 -7 -7 -7 -6 -6 -6 -6 -5 -5 -5 -5 -5 -5 -4 -4 -4 -4 -3 -3 -3 -3 -3 -2 ---------- Run | Yrd Mat Mat Sto Gar Mat Gar Mat Gar Fac Gar Fac Gar Fac Gar Fac Gar Fac Was Fac Gar Fac Gar Fac Gar Fac Gar Res Gar Res Tes Gar Res Machines Disabled 125 | . 3 . 7 4 . 10 1 2 . 5 2 6 3 9 8 6 10 . 1 5 1 5 1 6 4 8 . 2 1 10 4 1 Max in Single Turn 4 | . 2 . 2 2 . 1 1 1 . 1 . 2 1 2 . 1 4 . 1 1 1 2 . 1 1 2 . 1 . 1 1 . Garrison Access 9 | . . . . . . . . . . . . . 1 . . . 2 . 1 . 1 . . . 1 . 1 . 1 . . 1 Garrison Relay 54 | . . . . 1 . 8 . 2 . 4 . 5 . 6 . 5 . . . 4 . 4 . 4 . 5 . 2 . . 4 . Phase Generator 8 | . . . . 1 . . . 1 . . . 1 . 1 . 1 . . . . . 1 . . . 1 . . . . 1 . Machines Repaired . | . . . . . . . . . . . . . . . . . . . . . . . . . . . . . . . . . Machines Dismantled . | . . . . . . . . . . . . . . . . . . . . . . . . . . . . . . . . . Machines Sabotaged . | . . . . . . . . . . . . . . . . . . . . . . . . . . . . . . . . . Overloaded Fab Kills . | . . . . . . . . . . . . . . . . . . . . . . . . . . . . . . . . . Hacking | -11 -10 -9 -9 -9 -8 -8 -8 -8 -7 -7 -7 -7 -6 -6 -6 -6 -5 -5 -5 -5 -5 -5 -4 -4 -4 -4 -3 -3 -3 -3 -3 -2 --------- Run | Yrd Mat Mat Sto Gar Mat Gar Mat Gar Fac Gar Fac Gar Fac Gar Fac Gar Fac Was Fac Gar Fac Gar Fac Gar Fac Gar Res Gar Res Tes Gar Res Machines Accessed 127 | . 7 7 5 1 4 4 5 1 3 1 1 3 9 1 6 1 7 . 5 1 6 2 4 2 11 1 13 1 3 6 1 5 Terminals 78 | . 5 6 4 1 3 4 3 1 1 1 . 3 5 1 4 1 3 . . 1 3 2 2 2 6 1 7 1 1 2 1 3 Fabricators 5 | . . . . . . . . . . . . . 1 . 1 . . . 1 . . . . . 1 . . . . 1 . . Repair Stations 7 | . . . . . . . . . . . . . . . . . . . 1 . 1 . 1 . 1 . 2 . . . . 1 Recycling Units 2 | . 2 . . . . . . . . . . . . . . . . . . . . . . . . . . . . . . . Scanalyzers 13 | . . 1 . . . . 1 . 1 . . . 1 . . . 2 . 1 . . . . . 1 . 2 . 1 2 . . Garrison Access 22 | . . . 1 . 1 . 1 . 1 . 1 . 2 . 1 . 2 . 2 . 2 . 1 . 2 . 2 . 1 1 . 1 Total Hacks 242 | . 17 16 8 2 15 8 11 2 10 1 1 7 18 3 13 2 11 . 11 1 10 3 7 5 19 1 18 1 4 9 2 6 Successful 118 | . 8 7 5 1 8 2 5 1 4 1 1 3 10 . 8 . 6 . 7 . 5 2 3 3 8 1 7 1 1 6 . 4 Failed 120 | . 8 9 3 1 7 6 6 1 6 . . 4 8 3 5 2 4 . 4 1 5 1 4 2 10 . 11 . 3 2 2 2 Catastrophic 29 | . . 4 1 . . 2 . . 2 . . 2 1 . 2 . 1 . 2 1 1 . 2 1 1 . 3 . . 2 1 . Database Lockouts 4 | . 1 . . . . . . . . . . . . . . . 1 . . . . . . . 1 . . . . 1 . . Manual 115 | . 15 8 4 . 13 . 9 1 6 . . 2 7 . 7 . 5 . 2 . 8 . 6 1 8 . 6 . 1 2 . 4 Terminals 164 | . 15 13 7 2 14 8 8 2 4 1 . 7 12 3 10 2 5 . . 1 6 3 3 5 13 1 9 1 1 2 2 4 Fabricators 9 | . . . . . . . . . . . . . 2 . 2 . . . 2 . . . . . 2 . . . . 1 . . Repair Stations 13 | . . . . . . . . . . . . . . . . . . . 2 . 2 . 3 . 1 . 4 . . . . 1 Recycling Units 2 | . 2 . . . . . . . . . . . . . . . . . . . . . . . . . . . . . . . Scanalyzers 30 | . . 3 . . . . 2 . 3 . . . 2 . . . 4 . 5 . . . . . 1 . 3 . 2 5 . . Garrison Access 24 | . . . 1 . 1 . 1 . 3 . 1 . 2 . 1 . 2 . 2 . 2 . 1 . 2 . 2 . 1 1 . 1 Terminal Hacks 51 | . 5 4 3 1 5 2 2 1 2 1 . 3 2 . 4 . 1 . . . 1 2 1 3 3 1 1 1 . 1 . 1 Part Schematic 2 | . . . . . . . . . . . . . . . . . . . . . . . . . 1 . . . . . . 1 Robot Schematic 5 | . . . . . 1 . 1 . . . . . 1 . 1 . . . . . . . . . 1 . . . . . . . Robot Analysis 8 | . 4 1 . . 1 . 1 . 1 . . . . . . . . . . . . . . . . . . . . . . . Prototype ID Bank 1 | . . 1 . . . . . . . . . . . . . . . . . . . . . . . . . . . . . . Open Door 4 | . . . 1 . . . . . . . . . . . . . . . . . . 1 . . . . . 1 . 1 . . Branch Access Points 1 | . . 1 . . . . . . . . . . . . . . . . . . . . . . . . . . . . . . Emergency Access Points 5 | . . . . . . 1 . . . 1 . 1 . . . . . . . . . 1 . 1 . . . . . . . . Unreport Threat 9 | . . . . . 2 . . . 1 . . . 1 . 3 . . . . . 1 . 1 . . . . . . . . . Locate Traps 5 | . 1 1 1 . 1 . . . . . . . . . . . . . . . . . . . 1 . . . . . . . Reprogram Traps 1 | . . . 1 . . . . . . . . . . . . . . . . . . . . . . . . . . . . . Transport Status 1 | . . . . . . . . . . . . . . . . . . . . . . . . . . . 1 . . . . . Zone Layout 1 | . . . . . . . . . . . . . . . . . 1 . . . . . . . . . . . . . . . Garrison Registry 4 | . . . . 1 . . . 1 . . . . . . . . . . . . . . . 1 . 1 . . . . . . Patrol Navigation 3 | . . . . . . 1 . . . . . 1 . . . . . . . . . . . 1 . . . . . . . . Security Stations 1 | . . . . . . . . . . . . 1 . . . . . . . . . . . . . . . . . . . . Fabricator Hacks 8 | . . . . . . . . . . . . . 2 . 2 . . . 2 . . . . . 2 . . . . . . . Load Schematic 4 | . . . . . . . . . . . . . 1 . 1 . . . 1 . . . . . 1 . . . . . . . Build 4 | . . . . . . . . . . . . . 1 . 1 . . . 1 . . . . . 1 . . . . . . . Repair Station Hacks 2 | . . . . . . . . . . . . . . . . . . . . . . . . . . . 2 . . . . . Scan Component 1 | . . . . . . . . . . . . . . . . . . . . . . . . . . . 1 . . . . . Repair 1 | . . . . . . . . . . . . . . . . . . . . . . . . . . . 1 . . . . . Recycling Unit Hacks . | . . . . . . . . . . . . . . . . . . . . . . . . . . . . . . . . . Scanalyzer 12 | . . 1 . . . . 1 . . . . . 2 . . . 2 . 3 . . . . . . . . . . 3 . . Insert Component 4 | . . . . . . . . . . . . . . . . . 1 . 2 . . . . . . . . . . 1 . . Analyze 2 | . . . . . . . . . . . . . . . . . . . 1 . . . . . . . . . . 1 . . Retrieve Study 6 | . . 1 . . . . 1 . . . . . 2 . . . 1 . . . . . . . . . . . . 1 . . Garrison Access Hacks 22 | . . . 1 . 1 . 1 . 1 . 1 . 2 . 1 . 2 . 2 . 2 . 1 . 2 . 2 . 1 1 . 1 Unlock Access 14 | . . . 1 . 1 . 1 . 1 . 1 . 1 . 1 . . . 1 . 1 . 1 . 2 . 1 . . 1 . . Seal Access 8 | . . . . . . . . . . . . . 1 . . . 2 . 1 . 1 . . . . . 1 . 1 . . 1 Unauthorized Hacks 23 | . 3 2 1 . 2 . 1 . 1 . . . 2 . 1 . 1 . . . 2 . 1 . 1 . 2 . . 1 . 2 Terminals 18 | . 1 2 1 . 2 . 1 . 1 . . . 2 . 1 . 1 . . . 2 . 1 . 1 . . . . 1 . 1 Botnet 9 | . 1 1 1 . 1 . 1 . 1 . . . 1 . 1 . 1 . . . . . . . . . . . . . . . Operators 9 | . . 1 . . 1 . . . . . . . 1 . . . . . . . 2 . 1 . 1 . . . . 1 . 1 Fabricators . | . . . . . . . . . . . . . . . . . . . . . . . . . . . . . . . . . Repair Stations 3 | . . . . . . . . . . . . . . . . . . . . . . . . . . . 2 . . . . 1 Mechanics 3 | . . . . . . . . . . . . . . . . . . . . . . . . . . . 2 . . . . 1 Recycling Units 2 | . 2 . . . . . . . . . . . . . . . . . . . . . . . . . . . . . . . Tunnel 2 | . 2 . . . . . . . . . . . . . . . . . . . . . . . . . . . . . . . Scanalyzers . | . . . . . . . . . . . . . . . . . . . . . . . . . . . . . . . . . Garrison Access . | . . . . . . . . . . . . . . . . . . . . . . . . . . . . . . . . . Data Cores Recovered 3 | . 1 . 1 . . . . . . . . . . . . . . . . . . . . . . . . . 1 . . . Used 3 | . 1 . 1 . . . . . . . . . . . . . . . . . . . . . . . . . 1 . . . Hacking Detections 95 | . 5 7 3 1 3 3 4 1 3 1 1 3 7 1 5 1 5 . 2 1 3 1 3 2 9 . 8 1 2 5 1 3 Full Trace Events 15 | . . . . . . 1 . . 2 . . 1 3 . 1 . . . 1 . 2 . . . 2 . 1 . . . 1 . Feedback Events 2 | . . . . . . . . . . . . 1 . . . . . . . . . . . . . . . . . . 1 . Corruption 2 | . . . . . . . . . . . . 1 . . . . . . . . . . . . . . . . . . 1 . Feedback Blocked . | . . . . . . . . . . . . . . . . . . . . . . . . . . . . . . . . . Robot Schematics Acquired 5 | . . . . . 1 . . . . . . . 1 . 1 . . . . . . . . . 1 . . . . 1 . . Robots Built 4 | . . . . . . . . . . . . . 1 . 1 . . . 1 . . . . . 1 . . . . . . . Authchips 1 | . . . . . . . . . . . . . . . . . . . 1 . . . . . . . . . . . . . Time 290 | . . . . . . . . . . . . . 116 . 58 . . . 58 . . . . . 58 . . . . . . . Total Robot Build Rating 12 | . . . . . . . . . . . . . 3 . 3 . . . 3 . . . . . 3 . . . . . . . Part Schematics Acquired 14 | . . . . . . . . . . . . . . . . . . . 1 . . . . . 1 . . . . 11 . 1 Parts Built . | . . . . . . . . . . . . . . . . . . . . . . . . . . . . . . . . . Authchips . | . . . . . . . . . . . . . . . . . . . . . . . . . . . . . . . . . Time . | . . . . . . . . . . . . . . . . . . . . . . . . . . . . . . . . . Total Part Build Rating . | . . . . . . . . . . . . . . . . . . . . . . . . . . . . . . . . . Part Studies Acquired 6 | . . 1 . . . . 1 . . . . . 2 . . . 1 . . . . . . . . . . . . 1 . . Parts Repaired 1 | . . . . . . . . . . . . . . . . . . . . . . . . . . . 1 . . . . . Time 34 | . . . . . . . . . . . . . . . . . . . . . . . . . . . 34 . . . . . Parts Recycled . | . . . . . . . . . . . . . . . . . . . . . . . . . . . . . . . . . Recycled Matter . | . . . . . . . . . . . . . . . . . . . . . . . . . . . . . . . . . Retrieved Matter . | . . . . . . . . . . . . . . . . . . . . . . . . . . . . . . . . . Retrieved Components . | . . . . . . . . . . . . . . . . . . . . . . . . . . . . . . . . . Parts Scanalyzed 3 | . . . . . . . . . . . . . . . . . . . 2 . . . . . . . . . . 1 . . Part Schematics Acquired 1 | . . . . . . . . . . . . . . . . . . . 1 . . . . . . . . . . . . . Parts Damaged . | . . . . . . . . . . . . . . . . . . . . . . . . . . . . . . . . . Bothacking | -11 -10 -9 -9 -9 -8 -8 -8 -8 -7 -7 -7 -7 -6 -6 -6 -6 -5 -5 -5 -5 -5 -5 -4 -4 -4 -4 -3 -3 -3 -3 -3 -2 ------------ Run | Yrd Mat Mat Sto Gar Mat Gar Mat Gar Fac Gar Fac Gar Fac Gar Fac Gar Fac Was Fac Gar Fac Gar Fac Gar Fac Gar Res Gar Res Tes Gar Res Used RIF Installer 14 | . . . . 1 . 1 . 1 . 1 . 2 . 1 . 1 . . . 1 . 1 . 1 . 1 . 1 . . 1 . Coupler Efficiency 2 | . . . . . . . . . . . . 1 . . . . . . . . . . . . . . . . . . 1 . Hotswap 1 | . . . . . . 1 . . . . . . . . . . . . . . . . . . . . . . . . . . Command Fork 1 | . . . . . . . . . . 1 . . . . . . . . . . . . . . . . . . . . . . Threat Obfuscator 3 | . . . . . . . . . . . . . . 1 . . . . . 1 . 1 . . . . . . . . . . Watcher Feeds 1 | . . . . . . . . . . . . 1 . . . . . . . . . . . . . . . . . . . . Patrol Navigation 1 | . . . . . . . . . . . . . . . . 1 . . . . . . . . . . . . . . . . Alert ID Control 1 | . . . . . . . . . . . . . . . . . . . . . . . . 1 . . . . . . . . Structural Interface 1 | . . . . . . . . . . . . . . . . . . . . . . . . . . 1 . . . . . . Autoassimilate 2 | . . . . . . . . 1 . . . . . . . . . . . . . . . . . . . 1 . . . . Crosswire 1 | . . . . . . 1 . . . . . . . . . . . . . . . . . . . . . . . . . . Robots Hacked 477 | . . . . . 7 15 8 3 6 20 7 14 18 24 13 19 12 . 18 31 11 31 9 17 35 19 34 12 10 28 26 30 Non-combat 62 | . . . . . 1 1 4 . 4 1 5 . 4 . 4 1 3 . 5 . 2 . 1 . 10 . 5 . 3 3 . 5 Combat 415 | . . . . . 6 14 4 3 2 19 2 14 14 24 9 18 9 . 13 31 9 31 8 17 25 19 29 12 7 25 26 25 Autoassimilated 142 | . . . . . . . . . . 8 . 3 3 11 4 6 7 . 4 14 1 9 3 6 8 6 6 2 3 15 12 11 Robot Hacks Applied 385 | . . . . . 9 17 14 3 6 12 11 11 21 14 17 17 6 . 18 17 10 22 9 11 29 14 30 10 8 15 15 19 parse_system 20 | . . . . . 1 1 1 . . 3 . . 1 1 3 4 . . 2 . . . . . 1 1 . . . . 1 . find_chute 3 | . . . . . . . . . 2 . . . . . . . 1 . . . . . . . . . . . . . . . ignore_repairs 6 | . . . . . . . . . . . 1 . . . . . . . . . . . . . 1 . . . 2 1 . 1 map_walls 4 | . . . . . . . . . . . . . . . . . . . . . . . . . 3 . . . 1 . . . drop_inventory 23 | . . . . . . . 2 . 1 . 2 . 1 . 2 . 1 . 3 . 1 . . . 5 . 3 . . 1 . 1 find_recycling 1 | . . . . . . . . . . . . . . . . . . . . . . . . . . . 1 . . . . . ignore_parts 1 | . . . . . . . . . . . . . . . . . . . . . . . . . . . . . . . . 1 purge_threat 22 | . . . . . 2 . 5 . . . 3 . 4 . 4 . . . 1 . . . 3 . . . . . . . . . block_reporting 2 | . . . . . . . 1 . . . . . 1 . . . . . . . . . . . . . . . . . . . map_route 3 | . . . . . . . 1 . 1 . . . . . . . 1 . . . . . . . . . . . . . . . disable_scanner 4 | . . . . . . . . . . . . . . . . . . . . . . . . . . . . . . 4 . . report_analyses 2 | . . . . . . . . . . . . . . . . . . . . . . . . . . . . . . 2 . . find_garrison 11 | . . . . . . . . . 1 . 1 . 2 . 1 . 1 . 1 . . . . . 2 . 2 . . . . . reboot_propulsion 1 | . . . . . . . . . . . . . . . . . . . . . . . . . 1 . . . . . . . overload_power 6 | . . . . . . . . . . . 1 . 1 . 2 . . . . . . . . . . 1 . . 1 . . . amplify_resonance 69 | . . . . . 2 7 . 1 1 3 . 4 3 5 . 6 1 . 3 6 2 9 2 3 2 2 3 . . 1 . 3 wipe_record 1 | . . . . . . . . . . . . . . . . . . . . . . . . . . . 1 . . . . . reboot_system 5 | . . . . . . . . 1 . . . 1 . . . . . . . . . 1 . . . 1 . 1 . . . . go_dormant 1 | . . . . . . . . . . . . . . . . . . . . 1 . . . . . . . . . . . . overwrite_iff 50 | . . . . . 1 4 . . . 2 . 1 3 4 2 1 . . 2 3 3 1 . 4 3 2 1 1 . . 9 3 formatsys_low 18 | . . . . . 1 1 1 . . 1 1 . 1 . 1 1 . . 1 . 1 . 1 . 1 . . . 1 4 . 1 formatsys_high 132 | . . . . . 2 4 3 1 . 3 2 5 4 4 2 5 1 . 5 7 3 11 3 4 10 7 19 8 3 2 5 9 Relay Couplers Released 234 | . . . . 3 . 32 . 7 . 12 . 21 1 27 . 21 1 . 3 17 4 17 . 14 . 19 6 8 . 3 17 1 Machine Destruction 224 | . . . . 3 . 32 . 7 . 12 . 21 1 23 . 21 1 . 3 17 4 17 . 14 . 19 3 8 . . 17 1 Programmers 10 | . . . . . . . . . . . . . . 4 . . . . . . . . . . . . 3 . . 3 . . Attached 117 | . . . . . 3 8 2 1 1 5 2 6 4 9 3 8 1 . 2 8 2 6 2 6 4 7 3 7 2 2 7 6 Crosswired 77 | . . . . . . 6 . 3 . 2 . 6 . 10 . 9 . . 1 6 2 3 . 5 . 8 3 2 . 1 9 1 Fabnet Peak Effective % . | . . . . . . . . . . . . . . . . . . . . . . . . . . . . . . . . . Robots Rewired 33 | . . . . 3 . . . 1 1 6 . . . 7 . 1 . . . . . 5 . . . 2 . 2 . . 5 . Allies Hacked 26 | . . . . . . . . . . . . 1 1 . . 1 . . . . . 2 1 1 . . 3 . 1 10 1 4 Hacks Repelled 7 | . . . . . . . . . . . . . . . . . . . . . . . . . . . . . . 7 . . Allies | -11 -10 -9 -9 -9 -8 -8 -8 -8 -7 -7 -7 -7 -6 -6 -6 -6 -5 -5 -5 -5 -5 -5 -4 -4 -4 -4 -3 -3 -3 -3 -3 -2 -------- Run | Yrd Mat Mat Sto Gar Mat Gar Mat Gar Fac Gar Fac Gar Fac Gar Fac Gar Fac Was Fac Gar Fac Gar Fac Gar Fac Gar Res Gar Res Tes Gar Res Total Allies 445 | . . 4 . 3 4 9 4 2 1 22 3 10 12 29 11 16 8 1 15 26 10 30 8 17 34 20 33 15 8 28 33 29 Largest Group 25 | . . 4 4 3 2 4 6 8 3 13 12 8 8 13 15 11 7 1 8 11 13 25 22 24 18 10 11 12 7 16 20 19 Highest-Rated Group 1598 | . . 40 40 63 90 74 104 135 70 414 392 238 250 494 598 415 330 29 283 398 595 1315 1277 1598 1003 572 591 682 368 808 994 906 Highest-Rated Ally 142 | . . 10 10 21 90 23 23 23 32 95 104 104 101 95 90 116 116 29 49 49 142 142 142 142 142 116 68 99 116 116 119 89 Total Orders 121 | . . . . . 1 1 1 4 3 4 1 9 2 1 6 17 3 . 1 1 1 5 . 16 6 3 3 2 1 8 18 3 STAY 70 | . . . . . 1 . . 2 1 1 . 4 1 1 2 11 1 . . 1 . 4 . 13 1 3 2 2 . 4 13 2 FOLLOW 23 | . . . . . . . 1 1 1 . . 2 . . 2 3 1 . . . . 1 . 3 1 . 1 . . 1 4 1 AID 28 | . . . . . . 1 . 1 1 3 1 3 1 . 2 3 1 . 1 . 1 . . . 4 . . . 1 3 1 . Ally Attacks 2625 | . . . 1 34 18 10 39 31 10 59 29 62 63 97 102 71 94 . 47 118 78 154 52 110 270 83 205 145 48 194 158 243 Total Damage 83553 | . . . 34 695 275 150 596 728 292 1579 876 1706 1806 3250 4053 1850 3065 . 1217 3133 1833 3959 2143 4300 10375 3099 7440 4268 2016 6366 5515 6934 Kills 558 | . . . 1 4 3 5 7 6 1 10 6 21 9 27 28 14 20 . 13 22 15 31 17 31 52 16 36 46 11 44 34 28 Allies Corrupted 19 | . . . . . . . . . . . . . . . . 1 1 . 2 . . 1 . . 3 . 4 1 . 2 . 4 Allies Melted 7 | . . . . . . . . . . . . . . . . . . . . . . . . . . 1 2 2 . . 2 . X0-1V1 Amusement Gains 187 | . 4 5 . 97 5 . . . . . . . . . . 5 . . 4 . . . . . . 5 5 10 . . 35 12 Good Acts 198 | . . 5 . 6 2 19 3 5 2 12 6 5 6 3 2 14 8 2 1 8 3 8 5 3 12 5 21 4 2 3 3 20 Bad Acts 104 | . . 3 4 4 2 . . 1 2 1 2 5 6 5 . 5 1 1 5 3 1 . 3 5 8 7 7 5 4 6 8 . Intel | -11 -10 -9 -9 -9 -8 -8 -8 -8 -7 -7 -7 -7 -6 -6 -6 -6 -5 -5 -5 -5 -5 -5 -4 -4 -4 -4 -3 -3 -3 -3 -3 -2 ------- Run | Yrd Mat Mat Sto Gar Mat Gar Mat Gar Fac Gar Fac Gar Fac Gar Fac Gar Fac Was Fac Gar Fac Gar Fac Gar Fac Gar Res Gar Res Tes Gar Res Active Infowar (turns) 16317 | 6 7 52 . . . . . . . . . . . 1 . . 1141 507 1099 55 631 298 852 1045 1853 1377 2321 556 533 1500 993 1490 Optics 15058 | . . 52 . . . . . . . . . . . . . . 1141 507 868 . . . 850 1045 1853 1377 2321 556 533 1500 993 1462 Sensors 1 | . . . . . . . . . . . . . . . . . . 1 . . . . . . . . . . . . . . Terrain 3 | . . . . . . . . . . . . . . 1 . . . . . . . . . . . . . . . 2 . . Seismic 14 | 6 7 . . . . . . . . . . . . . . . . . . . . . . . . . 1 . . . . . Jamming 11196 | . . . . . . . . . . . . . . . . . . . 1078 55 631 298 852 506 1853 1099 1418 266 116 1433 217 1374 ECM 8 | . . . . . . . . . . . . . . . . . . 8 . . . . . . . . . . . . . . Robot Analysis Total 8 | . 4 1 . . 1 . 1 . 1 . . . . . . . . . . . . . . . . . . . . . . . Derelict Logs Recovered . | . . . . . . . . . . . . . . . . . . . . . . . . . . . . . . . . . Drone Launches . | . . . . . . . . . . . . . . . . . . . . . . . . . . . . . . . . . Drone Recoveries . | . . . . . . . . . . . . . . . . . . . . . . . . . . . . . . . . . Exploration | -11 -10 -9 -9 -9 -8 -8 -8 -8 -7 -7 -7 -7 -6 -6 -6 -6 -5 -5 -5 -5 -5 -5 -4 -4 -4 -4 -3 -3 -3 -3 -3 -2 ------------- Run | Yrd Mat Mat Sto Gar Mat Gar Mat Gar Fac Gar Fac Gar Fac Gar Fac Gar Fac Was Fac Gar Fac Gar Fac Gar Fac Gar Res Gar Res Tes Gar Res Turns Passed 36577 | 78 1245 720 592 1642 785 1512 597 772 473 1062 433 999 1453 1836 1042 1984 1141 507 1099 1589 666 1447 853 1045 1853 1377 2515 556 533 1500 1180 1491 Spaces Moved 17681 | 22 674 389 260 732 357 742 343 335 259 580 278 598 619 777 418 856 561 169 565 701 350 725 477 500 925 622 1250 246 294 743 612 702 Core 4 | . . . . . . . . . . . . . . . . . . . . . . . . . . . . . . . . 4 Treads 12727 | 8 641 271 . 623 357 742 343 228 44 . . . 320 102 . 589 561 169 565 701 350 725 477 500 860 374 871 246 294 470 612 684 Legs 28 | 14 . . . . . . . . . . . . . . . . . . . . . . . . . . . . . . . 14 Wheels 4922 | . 33 118 260 109 . . . 107 215 580 278 598 299 675 418 267 . . . . . . . . 65 248 379 . . 273 . . Hover . | . . . . . . . . . . . . . . . . . . . . . . . . . . . . . . . . . Flight . | . . . . . . . . . . . . . . . . . . . . . . . . . . . . . . . . . Fastest Speed 115 | 120 125 125 130 130 150 150 150 130 130 130 115 115 135 190 190 160 170 170 170 160 160 160 160 160 160 150 141 155 155 150 155 115 Average Speed 163 | 134 158 154 139 181 156 157 150 149 148 131 125 134 196 208 217 179 170 170 170 166 160 160 160 160 166 156 156 155 155 164 155 154 Slowest Speed 300 | 160 160 240 140 240 160 225 155 238 237 145 145 145 240 240 230 240 170 170 170 170 160 160 160 160 250 240 245 155 155 237 155 300 Overloaded Moves . | . . . . . . . . . . . . . . . . . . . . . . . . . . . . . . . . . Propulsion Burnouts . | . . . . . . . . . . . . . . . . . . . . . . . . . . . . . . . . . Robots Hopped . | . . . . . . . . . . . . . . . . . . . . . . . . . . . . . . . . . Potential Cave-ins . | . . . . . . . . . . . . . . . . . . . . . . . . . . . . . . . . . Cave-ins Triggered 1 | . . . . . . . . . . . . . . . . . . . . . . . . . . . . . . 1 . . Exploration Rate (%) 55 | 3 92 37 64 68 43 84 46 50 10 80 14 93 26 98 17 87 26 86 26 84 16 91 20 75 45 88 52 53 11 89 94 47 Regions Visited 32 Branch Regions 2 Pre-discovered Areas 2 | . 2 . . . . . . . . . . . . . . . . . . . . . . . . . . . . . . . Known Exits Taken 15 | . . 1 1 . 1 . 1 . 1 . 1 . 1 . 1 . . . 1 . 1 . 1 . 1 . 1 . 1 1 . . Unknown Exits Taken 2 | 1 1 . . . . . . . . . . . . . . . . . . . . . . . . . . . . . . . Scrap Searched . | . . . . . . . . . . . . . . . . . . . . . . . . . . . . . . . . . Spaces Dug 79 | . . 2 . 2 . 10 1 . . . . . 1 3 . 4 2 . . 20 . 8 . 3 8 . 6 . 2 2 . 5 Terrain Destroyed 833 | . 52 2 27 89 22 10 4 11 . 27 1 53 7 81 3 14 70 . 7 30 7 95 1 10 21 87 28 13 8 25 3 25 Melee 14 | . . 2 . 2 . 10 . . . . . . . . . . . . . . . . . . . . . . . . . . Projectile 243 | . . . . . 5 . 4 . . . 1 5 7 9 1 14 11 . 7 30 7 16 1 10 21 11 28 13 8 6 3 25 AOE 576 | . 52 . 27 87 17 . . 11 . 27 . 48 . 72 2 . 59 . . . . 79 . . . 76 . . . 19 . . Terrain Rammed . | . . . . . . . . . . . . . . . . . . . . . . . . . . . . . . . . . Walls Destroyed . | . . . . . . . . . . . . . . . . . . . . . . . . . . . . . . . . . Machines Disabled . | . . . . . . . . . . . . . . . . . . . . . . . . . . . . . . . . . Actions | -11 -10 -9 -9 -9 -8 -8 -8 -8 -7 -7 -7 -7 -6 -6 -6 -6 -5 -5 -5 -5 -5 -5 -4 -4 -4 -4 -3 -3 -3 -3 -3 -2 --------- Run | Yrd Mat Mat Sto Gar Mat Gar Mat Gar Fac Gar Fac Gar Fac Gar Fac Gar Fac Was Fac Gar Fac Gar Fac Gar Fac Gar Res Gar Res Tes Gar Res Total 22888 | 48 802 454 368 892 489 925 396 504 312 782 350 715 785 929 528 1163 693 389 665 939 432 943 550 680 1156 899 1662 353 344 959 806 976 Wait 1852 | 9 68 23 30 24 15 20 13 22 16 61 41 16 71 38 66 98 77 201 39 67 33 80 40 70 110 85 182 23 10 66 68 70 Move 17658 | 21 673 388 260 730 357 741 343 334 259 579 277 597 619 776 418 855 561 168 564 700 349 724 476 499 925 621 1250 245 293 743 611 702 Hop . | . . . . . . . . . . . . . . . . . . . . . . . . . . . . . . . . . Pick Up 315 | . 14 3 4 10 13 20 4 13 1 12 1 9 14 16 2 18 3 1 5 11 7 9 1 19 6 23 22 3 1 25 14 11 Fast Attach 146 | 1 2 1 1 5 4 2 1 4 2 1 4 4 5 8 1 10 2 8 2 7 1 7 . 1 5 7 23 7 1 5 7 7 Attach 124 | 2 . 4 . 7 9 8 1 2 1 4 1 4 8 3 1 7 3 . 1 1 3 3 3 2 5 5 9 2 2 6 4 13 Detach 25 | . 1 . . . 1 1 . 2 . . 1 2 . 1 . 3 1 1 . . 1 1 . . . . 3 1 . 2 . 3 Swap 289 | . 10 10 12 18 23 21 1 14 2 13 4 6 5 12 6 14 9 1 9 13 8 7 2 8 9 9 15 3 6 11 4 4 Drop 305 | 3 6 2 5 10 11 12 4 18 3 6 4 10 10 12 2 20 1 9 3 11 4 13 . 12 6 25 24 6 1 23 15 14 Fire 1952 | 12 26 20 55 61 55 78 27 93 28 87 16 66 53 59 31 122 35 . 40 129 26 81 21 65 81 112 123 62 29 68 66 125 Melee 43 | . . 2 . 12 . 22 . . . . . . . . . . . . . . . . . . . . . . . . . 7 Ram 2 | . . . 1 . . . . . . . . . . . . . . . . . . . . . . . . . . 1 . . Kick . | . . . . . . . . . . . . . . . . . . . . . . . . . . . . . . . . . Crush 47 | . 2 1 . 1 1 . . . . . . . . . . . 1 . 1 . . . 4 . 4 1 3 . 1 8 . 19 Escape Stasis 46 | . . . . 4 . . . . . 16 . . . 2 . 16 . . . . . . . . . 8 . . . . . . Rewire 84 | . . . . 10 . . 2 2 . 3 1 1 . 2 1 . . . 1 . . 18 3 4 5 3 8 1 . 1 17 1 Trap . | . . . . . . . . . . . . . . . . . . . . . . . . . . . . . . . . . Miscellaneous . | . . . . . . . . . . . . . . . . . . . . . . . . . . . . . . . . . Route ------- -11/Scrapyard -10/Materials (discovered 5 exits: *Mat x3 / [*Min] / [*Sub]) -9/Materials (discovered 4 exits: *Mat / Min x2 / *Sto) -9/Storage -9/Garrison (discovered 3 exits: *Mat x3) -8/Materials -8/Garrison (discovered 4 exits: *Mat x4) -8/Materials (discovered 3 exits: *Fac x2 / Gar) -8/Garrison (discovered 3 exits: *Fac x3) -7/Factory (discovered 2 exits: [*Low] / Gar) -7/Garrison (discovered 3 exits: *Fac x3) -7/Factory (discovered 2 exits: Fac / Gar) -7/Garrison (discovered 3 exits: *Fac x3) -6/Factory (discovered 4 exits: *Fac / [*Low x2] / Gar) -6/Garrison (discovered 3 exits: *Fac x3) -6/Factory (discovered 3 exits: *Fac / [*Low] / Gar) -6/Garrison (discovered 3 exits: *Fac x3) -5/Factory (discovered 3 exits: *Fac x2 / [*Upp]) -5/Waste -5/Factory (discovered 2 exits: [*Upp] / Gar) -5/Garrison (discovered 3 exits: *Fac x3) -5/Factory (discovered 2 exits: Fac / Gar) -5/Garrison (discovered 3 exits: *Fac x3) -4/Factory (discovered 4 exits: *Res x2 / [*Upp] / Gar) -4/Garrison (discovered 4 exits: *Res x3 / *Fac) -4/Factory (discovered 4 exits: *Res x2 / [*Arm] / Gar) -4/Garrison (discovered 3 exits: *Res x3) -3/Research (discovered 5 exits: *Res x3 / Tes / Gar) -3/Garrison -3/Research -3/Testing (discovered 2 exits: *Res / Gar) -3/Garrison (discovered 3 exits: *Res x3) -2/Research (discovered 2 exits: *Acc x2) History --------- Turn | Location | Event 23 | -11/Scrapyard | Discovered new exit (range 3) 79 | -11/Scrapyard | Entered Materials 300 | -10/Materials | Build established: Mutant 526 | -10/Materials | Discovered new exit (range 14) 664 | -10/Materials | Discovered new exit (range 7) 838 | -10/Materials | Discovered new exit (range 3) 1041 | -10/Materials | Discovered new exit (range 15) 1070 | -10/Materials | Central database locked down 1265 | -10/Materials | Discovered new exit (range 9) 1280 | -10/Materials | Prayed at D.C.S.S. Altar Unit 1324 | -10/Materials | Entered another Materials area 1324 | -9/Materials | Evolved 2 slots: Utility x1, Weapon x1 1590 | -9/Materials | KI resistance permanently improved by X0-1V1 (+15%; -150 max core) 1595 | -9/Materials | Discovered new exit (range 14) 1625 | -9/Materials | Build established: Tank 1816 | -9/Materials | X0-1V1 activates XOMVISION 1842 | -9/Materials | Discovered new exit (range 11) 1910 | -9/Materials | X0-1V1 sent you to a vault 1929 | -9/Materials | Identified exit to Mines 1929 | -9/Materials | Identified exit to Storage 2044 | -9/Materials | Entered Storage 2044 | -9/Storage | Accompanied by 4 allies 2126 | -9/Storage | X0-1V1 sent you into danger 2245 | -9/Storage | X0-1V1 added 0b10 threat records associated with you (major) 2444 | -9/Storage | First assault squad dispatched 2497 | -9/Storage | Destroyed 7 combat bots 2636 | -9/Storage | Identified exit to Garrison 2636 | -9/Storage | Entered Garrison 2716 | -9/Garrison | Triggered checkpoint 2793 | -9/Garrison | Triggered checkpoint 2814 | -9/Garrison | X0-1V1 upgraded hostiles (x2) 2844 | -9/Garrison | Core integrity fell below 50% 2891 | -9/Garrison | Lost 3 parts (1n2u) 3007 | -9/Garrison | Triggered checkpoint 3090 | -9/Garrison | Triggered checkpoint 3236 | -9/Garrison | Discovered new exit (range 13) 3264 | -9/Garrison | Phase Generator disabled 3336 | -9/Garrison | Core integrity fell below 20% 3556 | -9/Garrison | X0-1V1 rescued you from certain death 3678 | -9/Garrison | Triggered checkpoint 3703 | -9/Garrison | Spotted B-75 Beast 3737 | -9/Garrison | Installed Relay Interface Framework 3782 | -9/Garrison | Destroyed B-75 Beast 3865 | -9/Garrison | Discovered new exit (range 8) 3865 | -9/Garrison | Discovered new exit (range 80) 3865 | -9/Garrison | Discovered new exit (range 44) 4067 | -9/Garrison | Weapon slot count permanently improved by X0-1V1 (+1) 4071 | -9/Garrison | Build established: Scavenger-Tank 4200 | -9/Garrison | Garrison Relay disabled 4278 | -9/Garrison | Entered Materials 4278 | -8/Materials | Accompanied by 2 allies 4278 | -8/Materials | Evolved 2 slots: Propulsion x1, Utility x1 4551 | -8/Materials | X0-1V1 mutated your Utility slot to Weapon slot 4678 | -8/Materials | First assault squad dispatched 4693 | -8/Materials | Garrison activated, responded to threat 4916 | -8/Materials | Heat dissipation permanently improved by X0-1V1 (+15; -75 max core) 5063 | -8/Materials | Identified exit to Garrison 5063 | -8/Materials | Entered Garrison 5095 | -8/Garrison | Triggered checkpoint 5142 | -8/Garrison | Garrison Relay disabled 5311 | -8/Garrison | Lost 3 parts (1n2w) 5322 | -8/Garrison | System corruption reached 10% 5357 | -8/Garrison | Garrison Relay disabled 5359 | -8/Garrison | Garrison Relay disabled 5361 | -8/Garrison | Garrison Relay disabled 5465 | -8/Garrison | Build established: Bothacker-Tank 5489 | -8/Garrison | Triggered checkpoint 5491 | -8/Garrison | Triggered checkpoint 5579 | -8/Garrison | Triggered checkpoint 5601 | -8/Garrison | Discovered new exit (range 12) 5673 | -8/Garrison | Expanded RIF knowledge: Hotswap 5684 | -8/Garrison | Garrison Relay disabled 5788 | -8/Garrison | X0-1V1 activates XOMVISION 5845 | -8/Garrison | Expanded RIF knowledge: Crosswire 5855 | -8/Garrison | Identified exit to Materials 5855 | -8/Garrison | X0-1V1 revealed exit location to -8/Materials 5892 | -8/Garrison | Triggered checkpoint 5948 | -8/Garrison | Triggered checkpoint 5964 | -8/Garrison | Garrison Relay disabled 6091 | -8/Garrison | Discovered exit to Materials (range 6) 6094 | -8/Garrison | X0-1V1 activates XOMVISION 6105 | -8/Garrison | X0-1V1 whisked you away to safety 6115 | -8/Garrison | X0-1V1 revealed exit location to -8/Materials 6151 | -8/Garrison | Triggered checkpoint 6188 | -8/Garrison | Triggered checkpoint 6287 | -8/Garrison | Triggered checkpoint 6299 | -8/Garrison | Garrison Relay disabled 6575 | -8/Garrison | Entered Materials 6575 | -8/Materials | Accompanied by 4 allies 6769 | -8/Materials | Discovered new exit (range 82) 6795 | -8/Materials | Build established: Bothacker-Gunner 6861 | -8/Materials | Discovered new exit (range 17) 6971 | -8/Materials | Core integrity fell below 50% 7172 | -8/Materials | Identified exit to Garrison 7172 | -8/Materials | Entered Garrison 7172 | -8/Garrison | Accompanied by 6 allies 7182 | -8/Garrison | Triggered checkpoint 7274 | -8/Garrison | Identified exit to Factory 7274 | -8/Garrison | X0-1V1 revealed exit location to -7/Factory 7352 | -8/Garrison | Triggered checkpoint 7403 | -8/Garrison | Lost 3 allies 7426 | -8/Garrison | Garrison Relay disabled 7486 | -8/Garrison | X0-1V1 destroyed Phase Generator 7486 | -8/Garrison | Phase Generator disabled 7507 | -8/Garrison | X0-1V1 activates XOMVISION 7509 | -8/Garrison | Build established: Commander-Gunner 7638 | -8/Garrison | Discovered exit to Factory (range 81) 7638 | -8/Garrison | Discovered exit to Factory (range 79) 7638 | -8/Garrison | Discovered exit to Factory (range 44) 7688 | -8/Garrison | Triggered checkpoint 7704 | -8/Garrison | Triggered checkpoint 7730 | -8/Garrison | Triggered checkpoint 7836 | -8/Garrison | Garrison Relay disabled 7867 | -8/Garrison | Expanded RIF knowledge: Autoassimilate 7944 | -8/Garrison | Entered Factory 7944 | -7/Factory | Accompanied by 2 allies 7944 | -7/Factory | Evolved 2 slots: Propulsion x1, Utility x1 8034 | -7/Factory | Build established: Bothacker-Tank 8068 | -7/Factory | Discovered new exit (range 44) 8415 | -7/Factory | Identified exit to Garrison 8417 | -7/Factory | Entered Garrison 8417 | -7/Garrison | Accompanied by 1 ally 8455 | -7/Garrison | Triggered checkpoint 8495 | -7/Garrison | Expanded RIF knowledge: Command Fork 8522 | -7/Garrison | Identified exit to Factory 8522 | -7/Garrison | X0-1V1 revealed exit location to -7/Factory 8526 | -7/Garrison | Garrison Relay disabled 8595 | -7/Garrison | X0-1V1 revealed exit location to -7/Factory 8611 | -7/Garrison | Triggered checkpoint 8639 | -7/Garrison | X0-1V1 activates XOMVISION 8650 | -7/Garrison | Triggered checkpoint 8658 | -7/Garrison | Triggered checkpoint 8697 | -7/Garrison | Triggered checkpoint 8722 | -7/Garrison | System corruption reached 10% 8764 | -7/Garrison | Found embedded Infiltrators 8808 | -7/Garrison | Triggered checkpoint 8832 | -7/Garrison | Garrison Relay disabled 8853 | -7/Garrison | Triggered checkpoint 8926 | -7/Garrison | Lost 3 allies 9095 | -7/Garrison | Triggered checkpoint 9168 | -7/Garrison | Garrison Relay disabled 9201 | -7/Garrison | Discovered exit to Factory (range 10) 9269 | -7/Garrison | X0-1V1 activates XOMVISION 9270 | -7/Garrison | Triggered checkpoint 9313 | -7/Garrison | Lost 4 allies 9419 | -7/Garrison | Garrison Relay disabled 9472 | -7/Garrison | Build established: Botlord-Tank 9479 | -7/Garrison | Entered Factory 9479 | -7/Factory | Accompanied by 11 allies 9570 | -7/Factory | X0-1V1 released a cloud of subatomizers 9644 | -7/Factory | Identified exit to Factory 9644 | -7/Factory | X0-1V1 revealed exit location to -6/Factory 9729 | -7/Factory | X0-1V1 foreshadows a heat wave 9745 | -7/Factory | Identified exit to Garrison 9756 | -7/Factory | X0-1V1 sent you to a vault 9763 | -7/Factory | Found Prototype Protection 9763 | -7/Factory | Identified Lgt. Regenerative Plating 9812 | -7/Factory | Build established: Bothacker-Tank 9851 | -7/Factory | X0-1V1 added 0b10 threat records associated with you (minor) 9855 | -7/Factory | Garrison activated, responded to threat 9886 | -7/Factory | Ambient heat levels rising (+10) 9912 | -7/Factory | Entered Garrison 9912 | -7/Garrison | Accompanied by 6 allies 9938 | -7/Garrison | Triggered checkpoint 9953 | -7/Garrison | Expanded RIF knowledge: Coupler Efficiency 9982 | -7/Garrison | Garrison Relay disabled 10097 | -7/Garrison | Triggered checkpoint 10116 | -7/Garrison | Triggered checkpoint 10131 | -7/Garrison | Lost 3 allies 10207 | -7/Garrison | X0-1V1 vaporized surrounding terrain (radius 16) 10207 | -7/Garrison | Discovered exit to Factory (range 15) 10209 | -7/Garrison | Garrison Relay disabled 10209 | -7/Garrison | Garrison Relay disabled 10215 | -7/Garrison | Triggered checkpoint 10216 | -7/Garrison | P-60 Hacker assimilated allied Commando 4a 10304 | -7/Garrison | Build established: Botlord-Gunner 10334 | -7/Garrison | X0-1V1 destroyed Phase Generator 10334 | -7/Garrison | Phase Generator disabled 10337 | -7/Garrison | Learned Factory security intel 10396 | -7/Garrison | Triggered checkpoint 10431 | -7/Garrison | Weapon slot count temporarily expanded by X0-1V1 (+3) 10494 | -7/Garrison | Triggered checkpoint 10503 | -7/Garrison | Garrison Relay disabled 10535 | -7/Garrison | Discovered exit to Factory (range 5) 10607 | -7/Garrison | Spotted B-75 Beast 10678 | -7/Garrison | Triggered checkpoint 10738 | -7/Garrison | Build established: Botlord-Executioner 10752 | -7/Garrison | Expanded RIF knowledge: Watcher Feeds 10772 | -7/Garrison | Discovered exit to Factory (range 10) 10911 | -7/Garrison | Entered Factory 10911 | -6/Factory | Accompanied by 6 allies 10911 | -6/Factory | Evolved 2 slots: Utility x2 11081 | -6/Factory | Discovered new exit (range 19) 11238 | -6/Factory | X0-1V1 enhanced Transport squad support 11261 | -6/Factory | X0-1V1 mutated your Propulsion slot to Power slot 11284 | -6/Factory | Build established: Botlord-Tank 11346 | -6/Factory | X0-1V1 added 0b10 threat records associated with you (major) 11431 | -6/Factory | X0-1V1 mutated your Weapon slot to Utility slot 11446 | -6/Factory | Discovered new exit (range 16) 11759 | -6/Factory | X0-1V1 rewrote Guardian 5a IFF filter 11864 | -6/Factory | Discovered new exit (range 4) 12178 | -6/Factory | Found Scatter Rocket Array 12180 | -6/Factory | Lost 6 allies 12187 | -6/Factory | Fabricated M-28 Smith (x1) 12286 | -6/Factory | Found Scatter Rocket Array 12364 | -6/Factory | Identified exit to Garrison 12364 | -6/Factory | Entered Garrison 12364 | -6/Garrison | Accompanied by 2 allies 12384 | -6/Garrison | Found embedded Infiltrators 12416 | -6/Garrison | Triggered checkpoint 12458 | -6/Garrison | Garrison Relay disabled 12482 | -6/Garrison | Phase Generator disabled 12642 | -6/Garrison | Triggered checkpoint 12653 | -6/Garrison | Triggered checkpoint 12656 | -6/Garrison | Triggered checkpoint 12668 | -6/Garrison | Triggered checkpoint 12746 | -6/Garrison | Triggered checkpoint 12788 | -6/Garrison | Triggered checkpoint 12868 | -6/Garrison | Lost 4 allies 12910 | -6/Garrison | Triggered checkpoint 12916 | -6/Garrison | Discovered new exit (range 10) 13029 | -6/Garrison | Garrison Relay disabled 13073 | -6/Garrison | Identified exit to Factory 13073 | -6/Garrison | X0-1V1 revealed exit location to -6/Factory 13220 | -6/Garrison | Triggered checkpoint 13382 | -6/Garrison | Triggered checkpoint 13388 | -6/Garrison | Garrison Relay disabled 13391 | -6/Garrison | X0-1V1 rewrote Soldier 5m IFF filter 13687 | -6/Garrison | Garrison Relay disabled 13836 | -6/Garrison | Discovered exit to Factory (range 8) 13948 | -6/Garrison | Triggered checkpoint 13987 | -6/Garrison | Expanded RIF knowledge: Threat Obfuscation 14010 | -6/Garrison | Garrison Relay disabled 14200 | -6/Garrison | Entered Factory 14200 | -6/Factory | Accompanied by 10 allies 14320 | -6/Factory | X0-1V1 activates XOMVISION 14559 | -6/Factory | Fabricated M-28 Smith (x1) 14637 | -6/Factory | Discovered new exit (range 14) 14845 | -6/Factory | Discovered new exit (range 14) 15241 | -6/Factory | Identified exit to Garrison 15242 | -6/Factory | Entered Garrison 15242 | -6/Garrison | Accompanied by 10 allies 15330 | -6/Garrison | Triggered checkpoint 15341 | -6/Garrison | System corruption reached 10% 15378 | -6/Garrison | Garrison Relay disabled 15427 | -6/Garrison | Garrison Relay disabled 15453 | -6/Garrison | X0-1V1 activates XOMVISION 15592 | -6/Garrison | Lost 5 allies 15758 | -6/Garrison | Spotted B-75 Beast 15808 | -6/Garrison | Destroyed B-75 Beast 16035 | -6/Garrison | Triggered checkpoint 16062 | -6/Garrison | Triggered checkpoint 16089 | -6/Garrison | Triggered checkpoint 16138 | -6/Garrison | Expanded RIF knowledge: Patrol Navigation 16179 | -6/Garrison | X0-1V1 mutated your Utility slot to Propulsion slot 16201 | -6/Garrison | Triggered checkpoint 16230 | -6/Garrison | Garrison Relay disabled 16269 | -6/Garrison | Discovered new exit (range 7) 16383 | -6/Garrison | X0-1V1 rewrote Soldier 5u IFF filter 16444 | -6/Garrison | Triggered checkpoint 16560 | -6/Garrison | Triggered checkpoint 16565 | -6/Garrison | Discovered new exit (range 8) 16594 | -6/Garrison | Garrison Relay disabled 16736 | -6/Garrison | Triggered checkpoint 16775 | -6/Garrison | X0-1V1 destroyed Phase Generator 16775 | -6/Garrison | Phase Generator disabled 16815 | -6/Garrison | X0-1V1 activates XOMVISION 16844 | -6/Garrison | Garrison Relay disabled 16882 | -6/Garrison | Discovered new exit (range 10) 16919 | -6/Garrison | Rewired B-86 Titan 17060 | -6/Garrison | Found Unknown Launcher 17060 | -6/Garrison | Identified Fusion Bomb Launcher 17067 | -6/Garrison | Found Adv. Powered Armor 17226 | -6/Garrison | Entered Factory 17226 | -5/Factory | Accompanied by 6 allies 17226 | -5/Factory | Evolved 2 slots: Utility x2 17254 | -5/Factory | X0-1V1 activates XOMVISION 17359 | -5/Factory | Murdered 3 allies 17368 | -5/Factory | Central database locked down 17482 | -5/Factory | Identified exit to Factory 17482 | -5/Factory | X0-1V1 revealed exit location to -4/Factory 17500 | -5/Factory | X0-1V1 added 0b10 threat records associated with you (considerable) 17622 | -5/Factory | Found Prototype Launcher 17622 | -5/Factory | Identified Tesla Bomb Launcher 17724 | -5/Factory | Build established: Commander-Tank 18026 | -5/Factory | Build established: Botlord-Tank 18120 | -5/Factory | Spotted B-75 Beast 18126 | -5/Factory | First assault squad dispatched 18142 | -5/Factory | Destroyed B-75 Beast 18208 | -5/Factory | Discovered exit to Factory (range 21) 18247 | -5/Factory | Lost 4 allies 18296 | -5/Factory | Discovered new exit (range 22) 18367 | -5/Factory | Manually triggered Chute Trap 18367 | -5/Factory | Sucked down chute 18367 | -5/Factory | Entered Waste 18367 | -5/Waste | The area was eerily silent 18367 | -5/Waste | Met up with 1 ally sucked down the chute earlier 18445 | -5/Waste | Found Prototype Protection 18445 | -5/Waste | Identified Centrium Heavy Armor Plating 18524 | -5/Waste | Found Prototype Device 18524 | -5/Waste | Identified Exp. ECM Suite 18572 | -5/Waste | Identified exit to Factory 18572 | -5/Waste | X0-1V1 revealed exit location to -5/Factory 18863 | -5/Waste | System corruption reached 10% 18874 | -5/Waste | Entered Factory 18874 | -5/Factory | Accompanied by 1 ally 19048 | -5/Factory | X0-1V1 sent hostile B-60 Warrior (x3) 19191 | -5/Factory | Fabricated M-28 Smith? 19461 | -5/Factory | Discovered new exit (range 18) 19608 | -5/Factory | X0-1V1 enhanced Transport squad support 19639 | -5/Factory | X0-1V1 added 0b10 threat records associated with you (considerable) 19931 | -5/Factory | Lost 4 allies 19955 | -5/Factory | Identified exit to Garrison 19973 | -5/Factory | Entered Garrison 19973 | -5/Garrison | Accompanied by 4 allies 19997 | -5/Garrison | Expanded RIF knowledge: Threat Obfuscation 20023 | -5/Garrison | Spotted B-75 Beast 20052 | -5/Garrison | Allies destroyed B-75 Beast 20079 | -5/Garrison | Found Relay Coupler [Proto] 20081 | -5/Garrison | Found Relay Coupler [Proto] 20083 | -5/Garrison | Lost 3 allies 20111 | -5/Garrison | Triggered checkpoint 20179 | -5/Garrison | Triggered checkpoint 20196 | -5/Garrison | Garrison Relay disabled 20343 | -5/Garrison | Triggered checkpoint 20355 | -5/Garrison | Triggered checkpoint 20357 | -5/Garrison | Triggered checkpoint 20428 | -5/Garrison | Discovered new exit (range 16) 20559 | -5/Garrison | Triggered checkpoint 20606 | -5/Garrison | Garrison Relay disabled 20687 | -5/Garrison | Triggered checkpoint 20702 | -5/Garrison | Garrison Relay disabled 20927 | -5/Garrison | Garrison Relay disabled 20941 | -5/Garrison | Triggered checkpoint 20976 | -5/Garrison | Lost 4 allies 21006 | -5/Garrison | Discovered new exit (range 11) 21170 | -5/Garrison | Discovered new exit (range 10) 21205 | -5/Garrison | Triggered checkpoint 21249 | -5/Garrison | Triggered checkpoint 21562 | -5/Garrison | Entered Factory 21562 | -5/Factory | Accompanied by 9 allies 21770 | -5/Factory | X0-1V1 revealed exit location to -4/Factory 22169 | -5/Factory | P-70 Sage assimilated allied Fighter 6a 22215 | -5/Factory | Identified exit to Garrison 22228 | -5/Factory | Entered Garrison 22228 | -5/Garrison | Accompanied by 10 allies 22255 | -5/Garrison | Triggered checkpoint 22287 | -5/Garrison | Garrison Relay disabled 22331 | -5/Garrison | Garrison Relay disabled 22352 | -5/Garrison | Triggered checkpoint 22550 | -5/Garrison | Phase Generator disabled 22558 | -5/Garrison | Spotted B-75 Beast 22586 | -5/Garrison | Allies destroyed B-75 Beast 22589 | -5/Garrison | P-70 Sage assimilated allied Virus 6n 22731 | -5/Garrison | Spotted B-75 Beast 22744 | -5/Garrison | Triggered checkpoint 22748 | -5/Garrison | Allies destroyed B-75 Beast 22762 | -5/Garrison | X0-1V1 revealed exit location to -4/Factory 22766 | -5/Garrison | Triggered checkpoint 22771 | -5/Garrison | Triggered checkpoint 22778 | -5/Garrison | Triggered checkpoint 22808 | -5/Garrison | P-70 Sage assimilated allied Sentinel 6g 22885 | -5/Garrison | Expanded RIF knowledge: Threat Obfuscation 22904 | -5/Garrison | Discovered exit to Factory (range 5) 23016 | -5/Garrison | Triggered checkpoint 23025 | -5/Garrison | Garrison Relay disabled 23246 | -5/Garrison | Triggered checkpoint 23317 | -5/Garrison | Discovered exit to Factory (range 8) 23438 | -5/Garrison | Triggered checkpoint 23446 | -5/Garrison | Spotted B-75 Beast 23474 | -5/Garrison | Allies destroyed B-75 Beast 23502 | -5/Garrison | Found embedded Infiltrators 23667 | -5/Garrison | X0-1V1 activates XOMVISION 23675 | -5/Garrison | Entered Factory 23675 | -4/Factory | Accompanied by 17 allies 23675 | -4/Factory | Evolved 2 slots: Utility x2 23679 | -4/Factory | Identified exit to Research 23679 | -4/Factory | X0-1V1 revealed exit location to -3/Research 23742 | -4/Factory | Discovered new exit (range 19) 23785 | -4/Factory | Discovered exit to Research (range 4) 23933 | -4/Factory | Watched by a mysterious "MATRIX" hacker 24265 | -4/Factory | X0-1V1 mutated your Weapon slot to Propulsion slot 24402 | -4/Factory | Spotted B-86 Titan 24429 | -4/Factory | Allies destroyed B-86 Titan 24490 | -4/Factory | Garrison activated, responded to threat 24498 | -4/Factory | Identified exit to Garrison 24528 | -4/Factory | Entered Garrison 24528 | -4/Garrison | Accompanied by 19 allies 24542 | -4/Garrison | Triggered checkpoint 24572 | -4/Garrison | Expanded RIF knowledge: Alert ID Control 24599 | -4/Garrison | Discovered exit to Research (range 42) 24599 | -4/Garrison | Discovered exit to Research (range 73) 24599 | -4/Garrison | Discovered exit to Research (range 50) 24599 | -4/Garrison | Discovered new exit (range 61) 24620 | -4/Garrison | Triggered checkpoint 24675 | -4/Garrison | Garrison Relay disabled 24735 | -4/Garrison | Triggered checkpoint 24745 | -4/Garrison | Triggered checkpoint 24745 | -4/Garrison | Triggered checkpoint 24750 | -4/Garrison | Spotted B-86 Titan 24768 | -4/Garrison | Allies destroyed B-86 Titan 24820 | -4/Garrison | Lost 4 allies 24850 | -4/Garrison | Spotted B-86 Titan 24852 | -4/Garrison | Assimilated Titan 7a with formatsys_high 24853 | -4/Garrison | Spotted B-86 Titan 24854 | -4/Garrison | Assimilated Titan 7b with formatsys_high 24974 | -4/Garrison | Triggered checkpoint 25002 | -4/Garrison | X0-1V1 sent you into danger 25006 | -4/Garrison | Triggered checkpoint 25010 | -4/Garrison | Garrison Relay disabled 25096 | -4/Garrison | Spotted Striker 25098 | -4/Garrison | Spotted Striker 25106 | -4/Garrison | Assimilated Striker with formatsys_high 25106 | -4/Garrison | Assimilated Striker with formatsys_high 25122 | -4/Garrison | Garrison Relay disabled 25332 | -4/Garrison | Spotted B-86 Titan 25343 | -4/Garrison | Allies destroyed B-86 Titan 25433 | -4/Garrison | Garrison Relay disabled 25459 | -4/Garrison | X0-1V1 rewrote Sentinel 6l IFF filter 25497 | -4/Garrison | Triggered checkpoint 25573 | -4/Garrison | Entered Factory 25573 | -4/Factory | Accompanied by 14 allies 25812 | -4/Factory | Discovered exit to Research (range 8) 26011 | -4/Factory | Fabricated M-28 Smith (x1) 26131 | -4/Factory | Identified exit to Garrison 26177 | -4/Factory | Lost 5 allies 26345 | -4/Factory | X0-1V1 added 0b10 threat records associated with you (considerable) 26359 | -4/Factory | X0-1V1 upgraded ally (x6) 26391 | -4/Factory | Lost 6 allies 26698 | -4/Factory | X0-1V1 redirected Transport squads to designated parking area 26749 | -4/Factory | X0-1V1 vaporized surrounding terrain (radius 18) 26889 | -4/Factory | X0-1V1 sent you to a vault 26924 | -4/Factory | Discovered exit to Research (range 4) 26981 | -4/Factory | Garrison activated, responded to threat 27003 | -4/Factory | X0-1V1 mutated your Propulsion slot to Utility slot 27185 | -4/Factory | Discovered new exit (range 30) 27220 | -4/Factory | Central database locked down 27253 | -4/Factory | X0-1V1 upgraded ally (x1) 27268 | -4/Factory | X0-1V1 activates XOMVISION 27357 | -4/Factory | Found Prototype Processor 27357 | -4/Factory | Identified Exp. Melee Analysis Suite 27359 | -4/Factory | Lost 4 allies 27362 | -4/Factory | Spotted B-86 Titan 27388 | -4/Factory | Destroyed B-86 Titan 27426 | -4/Factory | Identified exit to Garrison 27426 | -4/Factory | Entered Garrison 27426 | -4/Garrison | Accompanied by 2 allies 27458 | -4/Garrison | P-70 Sage assimilated allied Veteran 7l 27496 | -4/Garrison | Phase Generator disabled 27585 | -4/Garrison | Expanded RIF knowledge: Structural Interface 27672 | -4/Garrison | Triggered checkpoint 27682 | -4/Garrison | Garrison Relay disabled 27732 | -4/Garrison | Spotted B-86 Titan 27749 | -4/Garrison | Triggered checkpoint 27752 | -4/Garrison | Triggered checkpoint 27767 | -4/Garrison | Allies destroyed B-86 Titan 27793 | -4/Garrison | Triggered checkpoint 27803 | -4/Garrison | Lost 6 allies 27954 | -4/Garrison | Discovered exit to Research (range 84) 27954 | -4/Garrison | Discovered exit to Research (range 22) 27954 | -4/Garrison | Discovered exit to Research (range 62) 27960 | -4/Garrison | System corruption reached 10% 27963 | -4/Garrison | Triggered checkpoint 27978 | -4/Garrison | Garrison Relay disabled 28072 | -4/Garrison | Spotted B-86 Titan 28112 | -4/Garrison | Allies destroyed B-86 Titan 28356 | -4/Garrison | Found embedded Infiltrators 28366 | -4/Garrison | Triggered checkpoint 28373 | -4/Garrison | Garrison Relay disabled 28388 | -4/Garrison | Spotted B-90 Cyclops 28388 | -4/Garrison | Spotted B-75 Beast 28388 | -4/Garrison | X0-1V1 sent you into danger 28393 | -4/Garrison | Rewired B-86 Titan 28396 | -4/Garrison | Rewired B-75 Beast 28399 | -4/Garrison | Allies destroyed B-75 Beast 28406 | -4/Garrison | Destroyed B-90 Cyclops 28666 | -4/Garrison | Triggered checkpoint 28707 | -4/Garrison | Garrison Relay disabled 28723 | -4/Garrison | Garrison Relay disabled 28803 | -4/Garrison | Entered Research 28803 | -3/Research | Accompanied by 6 allies 28803 | -3/Research | Evolved 2 slots: Propulsion x1, Utility x1 28861 | -3/Research | Repaired Adv. Remote Force Field 28926 | -3/Research | X0-1V1 sent you to a vault 28997 | -3/Research | Identified exit to Research 28997 | -3/Research | X0-1V1 revealed exit location to -2/Research 29160 | -3/Research | Identified exit to Testing 29160 | -3/Research | X0-1V1 revealed exit location to -3/Testing 29179 | -3/Research | P-80 Master assimilated allied Dissector 8e 29193 | -3/Research | Discovered exit to Research (range 22) 29231 | -3/Research | Lost 3 allies 29307 | -3/Research | P-80 Master assimilated allied Warden 8a 29614 | -3/Research | Lost 5 allies 29931 | -3/Research | Spotted B-86 Titan 29981 | -3/Research | Allies destroyed B-86 Titan 30011 | -3/Research | Lost 3 allies 30121 | -3/Research | Discovered exit to Research (range 3) 30169 | -3/Research | Spotted B-86 Titan 30682 | -3/Research | System corruption reached 10% 30710 | -3/Research | Lost 5 allies 31176 | -3/Research | Weapon slot count temporarily expanded by X0-1V1 (+1) 31316 | -3/Research | Identified exit to Garrison 31318 | -3/Research | Entered Garrison 31318 | -3/Garrison | Accompanied by 5 allies 31358 | -3/Garrison | Triggered checkpoint 31367 | -3/Garrison | Garrison Relay disabled 31379 | -3/Garrison | Assembled breached garrison interior 31404 | -3/Garrison | Rescued a captive Derelict 31425 | -3/Garrison | Spotted Executioner 31425 | -3/Garrison | Spotted Executioner 31445 | -3/Garrison | Allies destroyed Executioner 31451 | -3/Garrison | Allies destroyed Executioner 31451 | -3/Garrison | Rewired Striker 31457 | -3/Garrison | Rewired Striker 31601 | -3/Garrison | X0-1V1 downgraded hostiles (x3) 31698 | -3/Garrison | Lost 10 allies 31718 | -3/Garrison | X0-1V1 activates XOMVISION 31742 | -3/Garrison | Found Relay Coupler [Proto] 31792 | -3/Garrison | Garrison Relay disabled 31842 | -3/Garrison | Expanded RIF knowledge: Autoassimilate 31866 | -3/Garrison | Discovered new exit (range 2) 31874 | -3/Garrison | Entered Research 31874 | -3/Research | Accompanied by 2 allies 31911 | -3/Research | Discovered exit to Testing (range 25) 32093 | -3/Research | P-80 Master assimilated allied Warden 8g 32163 | -3/Research | Spotted B-86 Titan 32172 | -3/Research | Assimilated Titan 8a with formatsys_high 32214 | -3/Research | X0-1V1 enhanced Transport squad support 32237 | -3/Research | P-80 Master assimilated allied Assassin 8j 32323 | -3/Research | X0-1V1 rewrote Plague 8b IFF filter 32407 | -3/Research | Entered Testing 32407 | -3/Testing | Accompanied by 5 allies 32432 | -3/Testing | Found Exp. Terrain Scan Processor 32595 | -3/Testing | X0-1V1 added 0b10 threat records associated with you (considerable) 32613 | -3/Testing | Lost 3 allies 32663 | -3/Testing | X0-1V1 sent you to a vault 33022 | -3/Testing | Found Tachyon Dispersion Ray 33023 | -3/Testing | Master 8b assimilated hostile C-55 Analyst 33101 | -3/Testing | X0-1V1 announced a LAN party 33103 | -3/Testing | Found System Mapper 33207 | -3/Testing | Found Hyp. Multirail 33217 | -3/Testing | Master 8c assimilated hostile C-55 Analyst 33264 | -3/Testing | Lost 4 allies 33272 | -3/Testing | Garrison activated, responded to threat 33313 | -3/Testing | X0-1V1 revealed exit location to -2/Research 33345 | -3/Testing | Found Exp. Hardlight Generator 33359 | -3/Testing | X0-1V1 redirected Transport squads to designated parking area 33389 | -3/Testing | Central database locked down 33447 | -3/Testing | Master 8c assimilated hostile D-63 Destroyer 33512 | -3/Testing | Found Hvy. Regenerative Plating 33626 | -3/Testing | Found Prototype Ballistic Cannon 33629 | -3/Testing | Identified Omega Cannon 33658 | -3/Testing | Found Perforator 33728 | -3/Testing | Spotted Striker 33728 | -3/Testing | Spotted Striker 33861 | -3/Testing | Garrison activated, responded to threat 33886 | -3/Testing | Crushed by falling debris 33899 | -3/Testing | Identified exit to Garrison 33907 | -3/Testing | Entered Garrison 33907 | -3/Garrison | Accompanied by 13 allies 33935 | -3/Garrison | Triggered checkpoint 33976 | -3/Garrison | Garrison Relay disabled 34057 | -3/Garrison | Spotted B-86 Titan 34059 | -3/Garrison | Triggered checkpoint 34069 | -3/Garrison | Triggered checkpoint 34076 | -3/Garrison | Allies destroyed B-86 Titan 34077 | -3/Garrison | Triggered checkpoint 34096 | -3/Garrison | Triggered checkpoint 34102 | -3/Garrison | Lost 3 allies 34125 | -3/Garrison | X0-1V1 sent you into danger 34131 | -3/Garrison | Triggered checkpoint 34144 | -3/Garrison | Lost 3 allies 34162 | -3/Garrison | Garrison Relay disabled 34244 | -3/Garrison | Discovered exit to Research (range 2) 34263 | -3/Garrison | Rewired Executioner 34417 | -3/Garrison | X0-1V1 activates XOMVISION 34418 | -3/Garrison | Expanded RIF knowledge: Coupler Efficiency 34445 | -3/Garrison | Triggered checkpoint 34499 | -3/Garrison | Garrison Relay disabled 34564 | -3/Garrison | Found Relay Coupler [Proto] 34567 | -3/Garrison | Found Relay Coupler [Proto] 34570 | -3/Garrison | Found Relay Coupler [Proto] 34621 | -3/Garrison | Discovered exit to Research (range 19) 34730 | -3/Garrison | Found Prototype Processor 34731 | -3/Garrison | X0-1V1 destroyed Phase Generator 34731 | -3/Garrison | Phase Generator disabled 34731 | -3/Garrison | Identified Exp. Core Analyzer 34895 | -3/Garrison | Garrison Relay disabled 34975 | -3/Garrison | X0-1V1 vaporized surrounding terrain (radius 21) 34976 | -3/Garrison | Discovered exit to Research (range 8) 35087 | -3/Garrison | Entered Research 35087 | -2/Research | Accompanied by 15 allies 35087 | -2/Research | Evolved 2 slots: Power x1, Utility x1 35215 | -2/Research | X0-1V1 activates XOMVISION 35218 | -2/Research | X0-1V1 sent you to a vault 35279 | -2/Research | Lost 3 allies 35484 | -2/Research | Discovered new exit (range 24) 35486 | -2/Research | Spotted B-90 Cyclops 35524 | -2/Research | Allies destroyed B-90 Cyclops 35555 | -2/Research | Lost 6 allies 35564 | -2/Research | P-80 Master assimilated allied Veteran 8*35 35626 | -2/Research | Lost 3 allies 35755 | -2/Research | Weapon slot count temporarily expanded by X0-1V1 (+2) 36147 | -2/Research | Lost 4 allies 36453 | -2/Research | Identified exit to Access 36453 | -2/Research | X0-1V1 revealed exit location to -1/Access 36460 | -2/Research | Spotted Striker 36460 | -2/Research | Spotted Striker 36460 | -2/Research | Spotted Striker 36461 | -2/Research | Cargo convoy interrupted 36491 | -2/Research | System corruption reached 10% 36513 | -2/Research | Core integrity fell below 50% 36518 | -2/Research | Lost 5 allies 36528 | -2/Research | Assimilated Striker with formatsys_high 36530 | -2/Research | Assimilated Striker with formatsys_high 36553 | -2/Research | Lost 14 parts (3p4n4u3w) 36557 | -2/Research | Core integrity fell below 20% 36570 | -2/Research | X0-1V1 whisked you away to safety 36578 | -2/Research | Self-destructed Last Messages --------------- 36547_ Acquired Unknown Leg. 36547_ Identified Centrium Leg. 36547_ R-10 Processor collects Adv. Heat Sink. 36548_ Striker system terminally corrupted. 36548_ R-10 Processor collects Corrupted Impulse Thruster Array. 36548_ U-05 Engineer lays Concrete. 36550_ R-10 Processor collects Gamma Rifle. 36551_ Acquired 70 matter. 36552_ U-05 Engineer builds a Wall. 36557_ X-87 Electro destroyed. 36560_ System corrupted: Component data lost. 36562_ K-01 Serf collects debris. 36565_ Acquired Biometal Leg. 36566_ ALERT: Suspicious intruders detected, dispatching Specialist reinforcements to area. 36566_ Acquired 10 matter. 36566_ K-01 Serf collects debris. 36570_ X0-1V1: "You need a change of scenery." 36578_ System corrupted: Matter fused (-9). Map ----- +----------------------------------------------------+ | ????????????????????? ?????????????????? | | ????????????????????? ?????????????????? | | ????????????????????? ?????????????????? | | ????????????????????? ????????????????? | | ?????????????????????? ????????????????? | | ?????????????????????? ????????????????? | | ?????????????????????? ????????????????? | | ?????????????????????? ????????????????? | | ?????????????????????? ????????????????? | | ?????????????????????? ????????????????? | | ?????????????????????? ????????????????? | | ?????????????????????? ????????????????? | | ?????????????????????? ##??????????????? | | ?????????????????????? #??????????????? | | ??????????????????????# #??????????????? | | ??????????????????????# #??????????????? | | ??????????????????????# #??????????????? | | ??????????????????????# #??????????????? | | ??????????????????????#+#####??????????? | | ??????????????????????# #??????????? | | ??????????????????????# #??????????? | | ??????????????????????# #??????????? | | ??????????????????????# #??????????? | | ??????????????????????# #??????????? | | ??????????????????????# #??????????? | | ??????????????????????# @ #??????????? | | ??????????????????????# #??????????? | | ??????????????????????# #??????????? | | ??????????????????????# #??????????? | | ??????????????????????# #??????????? | | ??????????????????????# #??????????? | | ######+##########?????###u###??????????? | | ?????? ????????????? | | ?????? ????????????? | | ????? ????????????? | | ?????? ????????????? | | ######??????????# ????????????? | | ! !! #?????????????? ????????????? | | !! #?????????????? ????????????? | | ! ###?????????????? ????????????? | | #???????????????? ????????????? | | #???????????????? ????????????? | | #???????????????? ????????????? | | #???????????????? ????????????? | | #???????????????? ????????????? | | #############???? ????????????? | | ^^ ????? ????????????? | | ????????????????????? | | * ?????????????????????? | | ^ """??????????????????????? | +----------------------------------------------------+ Best States ------------- Heat Dissipation 180 Energy Generation 77 Energy Capacity 2100 Matter Stores 905 Matter Capacity 1000 Sight Range 28 Terrain Scan Density 10 ECM Strength 3 Jamming Range 16 Power Amplification 30 Armor Coverage 1200 Resistance: KI 49 Resistance: TH 30 Resistance: EM 68 Evasion (%) 55 Targeting Accuracy 8 Core Analysis 8 Recoil Reduction 5 Kinecelleration 40 Salvage Targeting 5 Offensive Hacking 12 Defensive Hacking 12 Relay Coupler Types 9 Relay Coupler Value 350 Authchip Count 2 Item Schematics ----------------- Adv. Remote Force Field | -5/Factory | Scanalyzed Centrium Wheel | -4/Factory | Hacked Hvy. Gatling Laser | -3/Testing | Archive Exp. Cooling System | -3/Testing | Archive Prc. Energy Filter | -3/Testing | Archive Adv. Kinecellerator | -3/Testing | Archive Exp. Shield Generator | -3/Testing | Archive Enh. Biometal Leg | -3/Testing | Archive Shock Maul | -3/Testing | Archive Cld. Plasma Rifle | -3/Testing | Archive Adv. Remote Shield | -3/Testing | Archive Spectral Analyzer | -3/Testing | Archive Exp. Flexi-carbon Leg | -3/Testing | Archive Adv. Heavy Siege Treads | -2/Research | Hacked Robot Schematics ------------------ M-28 Smith | -8/Materials | Hacked X-62 Marksman | -6/Factory | Hacked H-66 Slayer | -6/Factory | Hacked P-60 Hacker | -4/Factory | Hacked L-61 Swordsman | -3/Testing | Archive Fabricated ------------ M-28 Smith | x1 | -6/Factory M-28 Smith | x1 | -6/Factory M-28 Smith | x1 | -5/Factory | Authchip M-28 Smith | x1 | -4/Factory Repaired ---------- Adv. Remote Force Field | 7% | -3/Research Studied --------- Hvy. Assault Rifle | -9/Materials | Hacked Gauss Rifle | -8/Materials | Hacked Arm. Huge Wheel | -6/Factory | Hacked Remote Datajack | -6/Factory | Hacked Hvy. Mass Driver | -5/Factory | Hacked Adv. Remote Datajack | -3/Testing | Hacked Alien Tech Used ----------------- None Achievements -------------- None Challenges ------------ None Game ------ Seed TractorDeliveryReplica Manual? 0 Play Time 07:08:00 Cumulative 603.3 hours Start 2026.07.14 @ 23:06:35 End 2026.07.18 @ 03:49:18 Sessions 25 Manual Loads 0 Difficulty Rogue Special Mode None Game No. 528 Rogue 492 Adventurer 36 Explorer 0 Win Type - Total 6 Types 2/0/0/1/1/0/0/2/0/0 Lore% 84 Gallery% 73 Achievement% 66 Wizard Run 0 Options --------- Layout 2 ASCII 0 Keyboard 0 Movement Numpad Keybinds 0 Fullscreen 1 Font 48/Smallcaps Map View 50x44 Zoom Use 0% Tactical HUD 1 Map Filters NONE Filters NONE Steam 1 RUN: 2343fb95-09af-4b5f-830d-ed088c1d2e2b